{"text_format":"1","workbook":"xlsx","n_sheets":14,"sheets":["プログラム","データチェック結果","入力制御","施設リスト","DataCheckData","修正フラグ","表紙","焼却","粗大","資源化","燃料化","その他","最終処分","し尿"],"not_rendered":{"charts":0,"images":3,"macros":0,"external_links":0,"defined_names":15,"comments":8,"pivot_tables":0},"unopened":[],"bounds":{"document_bytes":16777216,"sheet_cells":100000,"rows_first":2000,"rows_last":500,"rows_between":2000,"halvings":0,"cell_chars":16384,"cell_head_chars":4096},"cells_cut":0,"cells_raw":0,"read":"whole","date_system":"1900"}

{"sheet":"プログラム","index":0,"n_rows":18,"n_cols":5,"rows_kept":18,"cut":false,"hidden":false,"merged":[]}
[]
[]
[]
[null,null,null,"●入力データのチェック"]
[null,null,null,null,"今年度のデータを入力したら、左のボタンを押してください。"]
[null,null,null,null,"入力されたデータをチェックするプログラムが動き、「データチェック結果」のシートに結果が書き込まれます。"]
[]
[]
[]
[]
[]
[null,null,null,"●施設シートの追加に関する注意事項"]
[null,null,null,null,{"$f":"SUBSTITUTE(CLEAN(表紙!D4),\"　\",\"\") & \"に建設着工した施設、または建設中の施設がある場合のみ左のボタンを押してください。新たに施設シートが追加できます。\"","v":"令和7年4月1日～令和8年3月31日に建設着工した施設、または建設中の施設がある場合のみ左のボタンを押してください。新たに施設シートが追加できます。"}]
[null,null,null,null,"誤って施設シートを追加してしまった場合、元に戻すことはできませんので、”施設名称”欄に「削除」と記入してください。"]
[]
[null,null,null,"●「廃止」施設に関する注意事項"]
[null,null,null,null,"施設シートの削除はできません。"]
[null,null,null,null,"該当期間に施設を廃止した場合は、各施設シートの”施設の改廃”欄で「廃止」を選んでください。"]

{"sheet":"データチェック結果","index":1,"n_rows":1,"n_cols":5,"rows_kept":1,"cut":false,"hidden":false,"merged":[]}
["番号","シート名","チェック対象","チェック結果","エラー区分"]

{"sheet":"入力制御","index":2,"n_rows":37,"n_cols":15,"rows_kept":37,"cut":false,"hidden":true,"merged":[]}
["設問等","コマンド",null,null,"焼却","粗大","資源化","燃料化","その他","保管","最終処分","し尿","コミプラ","リユース","堆肥化"]
["産業廃棄物の搬入有無","Exclusive",null,null,"K12:L12","K12:L12","K12:L12","K11:L11","K11:L11",null,"K12:L12"]
["資源化量","Exclusive",null,null,"G13:H13","G14:H14","G14:H14","G15:H15"]
["資源化方法及び資源化物量","Exclusive",null,null,null,null,null,null,null,null,null,"G19:H19"]
["脱水汚泥の直接埋立の有無","Exclusive",null,null,null,null,null,null,null,null,null,"G21:H21"]
["脱水汚泥の焼却の有無","KillingSelection","I24",null,null,null,null,null,null,null,null,"G24:I24"]
["官民連携の形態","KillingSelection","F23",null,null,null,null,null,"F23:L23"]
["官民連携の形態","KillingSelection","F24",null,"F24:L24","F24:L24","F24:L24",null,null,null,"F24:L24"]
["官民連携の形態","KillingSelection","F25",null,null,null,null,"F25:L25"]
["官民連携の形態","KillingSelection","F35",null,null,null,null,null,null,null,null,"F35:L35"]
["処理対象廃棄物","OnlyOne",null,null,"F31:J31,F33:I33","F31:H31,F33:H33","F31:M31,F33:M33","F32:L32,F34:L34","F30:K30",null,"F31:K31,F33:I33","F42:M42,F44:K44"]
["施設の種類","Exclusive",null,null,"F36:I36",null,null,"F37:K37,F39:G39"]
["処理方式","Exclusive",null,null,"F39:H39,F41:H41","F36:H36"]
["処理内容","OnlyOne",null,null,null,null,null,null,"F33:H33"]
["炉形式","Exclusive",null,null,"F44:H44"]
["余熱利用の状況","KillingSelection","G51",null,"F47:H47,F49:H49,F51:G51"]
["灰処理設備【焼却灰】","KillingSelection","K61",null,"G61:K61"]
["灰処理設備【飛灰】","KillingSelection","K63",null,"G63:K63"]
["生成物供給先の確保状況","OnlyOne",null,null,null,null,null,"F42:H42"]
["埋立場所","Exclusive",null,null,null,null,null,null,null,null,"F36:I36"]
["遮水の方式","KillingSelection","H41",null,null,null,null,null,null,null,"F39:I39,F41:H41"]
["最終処分場の構造","Exclusive",null,null,null,null,null,null,null,null,"F44:H44"]
["最終処分場の形式","Exclusive",null,null,null,null,null,null,null,null,"L44:M44"]
["保有水等集排水管の水位管理","Exclusive",null,null,null,null,null,null,null,null,"H48:I48"]
["覆土施行の状況","OnlyOne",null,null,null,null,null,null,null,null,"H51:J51"]
["ガス抜き管の計画的施行状況","Exclusive",null,null,null,null,null,null,null,null,"H54:J54"]
["浸出液の処理","KillingSelection","K59",null,null,null,null,null,null,null,"F57:K57,F59:K59"]
["メタンガス改修有無","Exclusive",null,null,null,null,null,null,null,null,"F62:G62"]
["メタンガスの利用","KillingSelection","I68",null,null,null,null,null,null,null,"G68:I68"]
["汚泥処理","OnlyOne",null,null,null,null,null,null,null,null,null,"F47:I47"]
["資源化処理","OnlyOne"]
["メタン発行の場合：メタンガス","OnlyOne",null,null,null,null,null,null,null,null,null,"M16:O16,M18:O18"]
["処分場の現状","Exclusive",null,null,null,null,null,null,null,null,"F71:H71"]
["運用管理体制","Exclusive",null,null,null,null,null,null,null,null,null,"F62:H62"]
["施設の改廃(新設(建設中),能力変更～移管)","Exclusive",null,null,"F66,H66:J66","F39,H39:J39","F41,H41:J41","F45,H45:J45","F36,H36:J36",null,"F74,H74:J74","F65,H65:J65"]
["施設の改廃(新設(新規稼働)～移管)","Exclusive",null,null,"G66:H66","G39:J39","G41:J41","G45:J45","G36:J36",null,"G74:J74","G65:J65"]
["施設の改廃(移管)","Exclusive",null,null,"F69:G69","F42:G42","F44:G44","F48:G48","F39:G39",null,"F77:G77","F68:G68"]

{"sheet":"施設リスト","index":3,"n_rows":1,"n_cols":11,"rows_kept":1,"cut":false,"hidden":false,"merged":[]}
[null,"焼却","粗大","資源化","燃料化","その他","最終処分","し尿","最終処分","し尿","コミプラ"]

{"sheet":"DataCheckData","index":4,"n_rows":282,"n_cols":23,"rows_kept":282,"cut":false,"hidden":true,"merged":[]}
["種類","施設種類","項目","指摘する項目","区分","対象データX","エラー条件","対象データY","対象グループ判定項目X1","対象グループ判定条件1","対象グループ判定項目Y1","対象グループ判定項目X2","対象グループ判定条件2","対象グループ判定項目Y2","対象グループ判定項目X3","対象グループ判定条件3","対象グループ判定項目Y3","対象グループ判定項目X4","対象グループ判定条件4","対象グループ判定項目Y4",null,"項目名","対象セル"]
["無回答",{"$f":"+getsn(F2)","v":"焼却"},"（１）施設名称","施設名称が無回答です。","Error",{"$f":"+焼却!$J$6","v":0}]
["無回答",{"$f":"+getsn(F3)","v":"焼却"},"（１）施設名称","施設の設置者(法人にあっては法人名)が無回答です。","Error",{"$f":"+焼却!$J$7","v":0}]
["無回答",{"$f":"+getsn(F4)","v":"焼却"},"（１）施設名称","施設の所在地が無回答です。","Error",{"$f":"+焼却!$J$8","v":0}]
["無回答",{"$f":"+getsn(F5)","v":"焼却"},"（１）施設名称","施設設置時の届出・許可が無回答です。","Error",{"$f":"+焼却!$E$7","v":"選択してください"},"=","選択してください"]
["無回答","焼却","（１）施設名称","施設設置時の届出・許可が無回答です。","Error",{"$f":"+焼却!$E$7","v":"選択してください"}]
["無回答","焼却","（２）処理実績","年間処理量が無回答です。","Warning",{"$f":"+焼却!$G$10","v":0}]
["無回答","焼却","（２）処理実績","資源化量が無回答です。","Warning",{"$f":"+焼却!$G$11","v":0}]
["無回答","焼却","（２）処理実績","資源化量が入力されていますが、「資源化物生産量」「資源化物搬出量」が無回答です。","Error",{"$f":"+焼却!$G$13:$H$13","v":{"$error":"#VALUE!"}},null,null,{"$f":"+焼却!$G$11","v":0},"<>"]
["無回答","焼却","（２）処理実績","産業廃棄物の搬入有無の「有り」「無し」が無回答です。","Error",{"$f":"+焼却!$K$12:$L$12","v":{"$error":"#VALUE!"}}]
["無回答","焼却","（２）処理実績","産業廃棄物の搬入有無が「有り」なのに、一般廃棄物の割合が無回答です。","Error",{"$f":"+焼却!$K$14","v":0},null,null,{"$f":"+焼却!$K$12","v":0},null,1]
["非該当","焼却","（２）処理実績","産業廃棄物の搬入有無が「無し」なのに、一般廃棄物の割合が回答されています。","Error",{"$f":"+焼却!$K$14","v":0},"<>",null,{"$f":"+焼却!$L$12","v":0},null,1]
["無回答",{"$f":"+getsn(F13)","v":"焼却"},"（３）施設概要","官民連携の形態が無回答です。","Error",{"$f":"+焼却!$F$24:$L$24","v":0}]
["無回答",{"$f":"+getsn(F14)","v":"焼却"},"（３）施設概要","官民連携の形態で「その他」が選択されていますが、「その他→具体的に」が記載されていません。","Error",{"$f":"+焼却!$M$24","v":0},null,null,{"$f":"+焼却!$L$24","v":0},null,1]
["無回答",{"$f":"+getsn(F15)","v":"焼却"},"（３）施設概要","契約等の種別が無回答です。","Error",{"$f":"+焼却!$F$28:$I$28","v":0},null,null,{"$f":"+焼却!$F$24","v":0},"<>",1]
["無回答",{"$f":"+getsn(F16)","v":"焼却"},"（３）施設概要","契約等の種別で「その他」が選択されていますが、「その他→具体的に」が記載されていません。","Error",{"$f":"+焼却!$J$28","v":0},null,null,{"$f":"+焼却!$I$28","v":0},null,1]
["無回答",{"$f":"+getsn(F17)","v":"焼却"},"（３）施設概要","処理対象廃棄物が無回答です。","Error",{"$f":"+焼却!$F$31:$J$31,焼却!$F$33:$I$33","v":{"$error":"#VALUE!"}}]
["無回答","焼却","（３）施設概要","処理対象廃棄物で「その他」が選択されていますが、「その他→具体的に」が記載されていません。","Warning",{"$f":"+焼却!$K$31","v":0},null,null,{"$f":"焼却!$J$31","v":0},null,1]
["無回答",{"$f":"+getsn(F19)","v":"焼却"},"（３）施設概要","施設の種類が無回答です。","Error",{"$f":"+焼却!$F$36:$I$36","v":0}]
["無回答","焼却","（３）施設概要","施設の種類で「その他」が選択されていますが、「その他→具体的に」が記載されていません。","Warning",{"$f":"+焼却!$J$36","v":0},null,null,{"$f":"焼却!$I$36","v":0},null,1]
["無回答","焼却","（３）施設概要","処理方式が無回答です。","Error",{"$f":"+焼却!$F$39:$H$39,焼却!$F$41:$H$41","v":{"$error":"#VALUE!"}}]
["無回答","焼却","（３）施設概要","炉形式が無回答です。","Error",{"$f":"+焼却!$F$44:$H$44","v":0}]
["無回答","焼却","（３）施設概要","処理能力が無回答です。","Error",{"$f":"+焼却!$L$35","v":0}]
["無回答","焼却","（３）施設概要","炉数が無回答です。","Error",{"$f":"+焼却!$L$38","v":0}]
["無回答","焼却","（３）施設概要","使用開始年度が無回答です。","Error",{"$f":"+焼却!$L$40","v":0}]
["単位ミス","焼却","（３）施設概要","使用開始年度の単位が間違っています。","Error",{"$f":"+焼却!$L$40","v":0},"<",1900,{"$f":"+焼却!$L$40","v":0},"<>"]
["無回答",{"$f":"+getsn(F27)","v":"焼却"},"（３）施設概要","建築面積が無回答です。","Error",{"$f":"+焼却!$L$44","v":0}]
["無回答",{"$f":"+getsn(F28)","v":"焼却"},"（３）施設概要","延床面積が無回答です。","Error",{"$f":"+焼却!$M$44","v":0}]
["無回答",{"$f":"+getsn(F29)","v":"焼却"},"（３）施設概要","敷地面積が無回答です。","Error",{"$f":"+焼却!$N$44","v":0}]
["無回答","焼却","（３）施設概要","処理施設の高さが無回答です。","Error",{"$f":"+焼却!$O$44","v":0}]
["無回答","焼却","（３）施設概要","煙突の高さが無回答です。","Error",{"$f":"+焼却!$P$44","v":0}]
["無回答",{"$f":"+getsn(F32)","v":"焼却"},"（３）施設概要","余熱利用の状況が無回答です。","Error",{"$f":"+焼却!$F$47:$H$47,焼却!$F$49:$H$49,焼却!$F$51:$G$51","v":{"$error":"#VALUE!"}}]
["無回答","焼却","（３）施設概要","余熱利用(場内温水/場内蒸気/場外温水/場外蒸気/その他)が行われているのに、余熱利用量（仕様値・公称値）が無回答です。","Error",{"$f":"+焼却!$J$47","v":0},null,null,{"$f":"+焼却!$F$47:$G$47,焼却!$F$49:$G$49,焼却!$F$51","v":{"$error":"#VALUE!"}},">",0]
["無回答","焼却","（３）施設概要","余熱利用(場内温水/場内蒸気/場外温水/場外蒸気/その他)が行われているのに、余熱利用量（実績値）が無回答です。","Warning",{"$f":"+焼却!$J$49","v":0},null,null,{"$f":"+焼却!$F$47:$G$47,焼却!$F$49:$G$49,焼却!$F$51","v":{"$error":"#VALUE!"}},">",0]
["無回答","焼却","（３）施設概要","余熱利用（場外）が行われているのに、余熱利用量(うち外部熱供給量)（仕様値・公称値）が無回答です。","Error",{"$f":"+焼却!$J$48","v":0},null,null,{"$f":"+焼却!$F$49:$G$49","v":{"$error":"#VALUE!"}},">",0]
["無回答","焼却","（３）施設概要","余熱利用（場外）が行われているのに、余熱利用量(うち外部熱供給量)（実績値）が無回答です。","Warning",{"$f":"+焼却!$J$50","v":0},null,null,{"$f":"+焼却!$F$49:$G$49","v":{"$error":"#VALUE!"}},">",0]
["無回答","焼却","（３）施設概要","余熱利用（発電）が行われているのに、発電能力が無回答です。","Error",{"$f":"+焼却!$N$47","v":0},null,null,{"$f":"+焼却!$H$47,焼却!$H$49","v":{"$error":"#VALUE!"}},">",0]
["無回答","焼却","（３）施設概要","余熱利用（発電）が行われているのに、発電効率（仕様値・公称値）が無回答です。","Error",{"$f":"+焼却!$N$48","v":0},null,null,{"$f":"+焼却!$H$47,焼却!$H$49","v":{"$error":"#VALUE!"}},">",0]
["無回答","焼却","（３）施設概要","余熱利用（発電）が行われているのに、総発電量（実績値）が無回答です。","Warning",{"$f":"+焼却!$N$49","v":0},null,null,{"$f":"+焼却!$H$47,焼却!$H$49","v":{"$error":"#VALUE!"}},">",0]
["無回答","焼却","（３）施設概要","余熱利用（発電(場外利用)）が行われているのに、総発電量(うち外部供給量)（実績値）が無回答です。","Warning",{"$f":"+焼却!$N$50","v":0},null,null,{"$f":"+焼却!$H$49","v":0},null,1]
["非該当","焼却","（３）施設概要","余熱利用の状況で「無し」が選択されていますが、余熱利用量（実績値）が入力されています。","Error",{"$f":"+焼却!$J$49","v":0},"<>",null,{"$f":"+焼却!$G$51","v":0},null,1]
["非該当","焼却","（３）施設概要","余熱利用の状況で「無し」が選択されていますが、外部熱供給量（実績値）が入力されています。","Error",{"$f":"+焼却!$J$50","v":0},"<>",null,{"$f":"+焼却!$G$51","v":0},null,1]
["非該当","焼却","（３）施設概要","余熱利用の状況で「無し」が選択されていますが、総発電量（実績値）が入力されています。","Error",{"$f":"+焼却!$N$49","v":0},"<>",null,{"$f":"+焼却!$G$51","v":0},null,1]
["非該当","焼却","（３）施設概要","余熱利用の状況で「無し」が選択されていますが、総発電量(うち外部供給量)（実績値）が入力されています。","Error",{"$f":"+焼却!$N$50","v":0},"<>",null,{"$f":"+焼却!$G$51","v":0},null,1]
["無回答",{"$f":"+getsn(F45)","v":"焼却"},"（３）施設概要","契約電力会社名（受電）が無回答です。","Error",{"$f":"+焼却!$F$55","v":0}]
["非該当",{"$f":"+getsn(F46)","v":"焼却"},"（３）施設概要","売電量が0より大きい場合、売電収入も0より大きい値になります。","Error",{"$f":"+焼却!$L$53","v":0},null,0,{"$f":"+焼却!$L$52","v":0},">",0]
["無回答","焼却","（３）施設概要","灰処理設備【焼却灰】が無回答です。","Error",{"$f":"+焼却!$G$61:$K$61","v":{"$error":"#VALUE!"}}]
["無回答","焼却","（３）施設概要","灰処理設備【飛灰】が無回答です。","Error",{"$f":"+焼却!$G$63:$K$63","v":{"$error":"#VALUE!"}}]
["無回答",{"$f":"+getsn(F49)","v":"焼却"},"（３）施設概要","施設の改廃で「移管元」を選択しているが、移管先の団体名が無回答です。","Error",{"$f":"+焼却!$I$69","v":0},null,null,{"$f":"+焼却!$F$69","v":0},null,1]
["無回答","焼却","（３）施設概要","施設の改廃で「移管先」を選択しているが、移管元の団体名が無回答です。","Error",{"$f":"+焼却!$I$69","v":0},null,null,{"$f":"+焼却!$G$69","v":0},null,1]
["無回答","焼却","（３）施設概要","施設の改廃で「移管先」を選択しているが、移管元の施設種別が無回答です。","Error",{"$f":"+焼却!$K$69","v":0},null,null,{"$f":"+焼却!$G$69","v":0},null,1]
["無回答","焼却","（３）施設概要","施設の改廃で「移管先」を選択しているが、移管元の施設名称が無回答です。","Error",{"$f":"+焼却!$L$69","v":0},null,null,{"$f":"+焼却!$G$69","v":0},null,1]
["無回答","焼却","（３）施設概要","ごみ組成分析結果が無回答です。","Warning",{"$f":"+焼却!$F$72:$K$72,焼却!$F$75:$I$75,焼却!$K$75:$L$75","v":{"$error":"#VALUE!"}}]
["数値確認","焼却","（３）施設概要","ごみ組成分析結果のごみ種類別組成の合計が100％となっていませんが、よろしいですか。","Warning",{"$f":"+焼却!$L$72","v":0},"<>",100,{"$f":"+焼却!$L$72","v":0},"<>",0]
["数値確認",{"$f":"+getsn(F55)","v":"焼却"},"（３）施設概要","ごみ組成分析結果の単位容積重量が1,000〔kg/㎥〕以上となっていますが、よろしいですか。","Warning",{"$f":"+焼却!$F$75","v":0},">=",1000,{"$f":"+焼却!$F$75","v":0},"<>",0]
["数値確認","焼却","（３）施設概要","ごみ組成分析結果の単位容積重量が10〔kg/㎥〕以下となっていますが、よろしいですか。","Warning",{"$f":"+焼却!$F$75","v":0},"<=",10,{"$f":"+焼却!$F$75","v":0},"<>",0]
["数値確認","焼却","（３）施設概要","ごみ組成分析結果の三成分の合計が100％となっていませんが、よろしいですか。","Warning",{"$f":"+焼却!$J$75","v":0},"<>",100,{"$f":"+焼却!$J$75","v":0},"<>",0]
["数値確認","焼却","（３）施設概要","ごみ組成分析結果の低位発熱量（計算値）が4,200〔kJ/kg〕以下となっていますが、よろしいですか。","Warning",{"$f":"+焼却!$K$75","v":0},"<=",4200,{"$f":"+焼却!$K$75","v":0},"<>",0]
["数値確認","焼却","（３）施設概要","ごみ組成分析結果の低位発熱量（実測値）が4,200〔kJ/kg〕以下となっていますが、よろしいですか。","Warning",{"$f":"+焼却!$L$75","v":0},"<=",4200,{"$f":"+焼却!$L$75","v":0},"<>",0]
["数値確認",{"$f":"+getsn(F60)","v":"焼却"},"（３）施設概要","「低位発熱量（計算値）及び（実測値）」が未回答ですが、よろしいですか。","Warning",{"$f":"+焼却!$O$76","v":0},"=",0]
["無回答","焼却","（４）施設における燃料使用量等","処理施設での燃料使用量等・灯油で「使用している」、データ把握の状況が「全量把握している」、他施設との重複が「重複していない」となっていますが、活動量が空欄となっています。","Error",{"$f":"+焼却!$N$80","v":0},null,null,{"$f":"+焼却!$J$80","v":0},null,"使用している",{"$f":"+焼却!$K$80","v":0},null,"全量把握している",{"$f":"+焼却!$L$80","v":0},null,"重複していない"]
[{"$f":"+A61","v":"無回答"},"焼却","（４）施設における燃料使用量等","処理施設での燃料使用量等・揮発油で「使用している」、データ把握の状況が「全量把握している」、他施設との重複が「重複していない」となっていますが、活動量が空欄となっています。","Error",{"$f":"+焼却!$N$81","v":0},null,null,{"$f":"+焼却!$J$81","v":0},null,"使用している",{"$f":"+焼却!$K$81","v":0},null,"全量把握している",{"$f":"+焼却!$L$81","v":0},null,"重複していない"]
["無回答","焼却","（４）施設における燃料使用量等","処理施設での燃料使用量等・軽油で「使用している」、データ把握の状況が「全量把握している」、他施設との重複が「重複していない」となっていますが、活動量が空欄となっています。","Error",{"$f":"+焼却!$N$82","v":0},null,null,{"$f":"+焼却!$J$82","v":0},null,"使用している",{"$f":"+焼却!$K$82","v":0},null,"全量把握している",{"$f":"+焼却!$L$82","v":0},null,"重複していない"]
["無回答","焼却","（４）施設における燃料使用量等","処理施設での燃料使用量等・Ａ重油で「使用している」、データ把握の状況が「全量把握している」、他施設との重複が「重複していない」となっていますが、活動量が空欄となっています。","Error",{"$f":"+焼却!$N$83","v":0},null,null,{"$f":"+焼却!$J$83","v":0},null,"使用している",{"$f":"+焼却!$K$83","v":0},null,"全量把握している",{"$f":"+焼却!$L$83","v":0},null,"重複していない"]
["無回答","焼却","（４）施設における燃料使用量等","処理施設での燃料使用量等・Ｂ重油又はＣ重油で「使用している」、データ把握の状況が「全量把握している」、他施設との重複が「重複していない」となっていますが、活動量が空欄となっています。","Error",{"$f":"+焼却!$N$84","v":0},null,null,{"$f":"+焼却!$J$84","v":0},null,"使用している",{"$f":"+焼却!$K$84","v":0},null,"全量把握している",{"$f":"+焼却!$L$84","v":0},null,"重複していない"]
["無回答","焼却","（４）施設における燃料使用量等","処理施設での燃料使用量等・ＬＰＧで「使用している」、データ把握の状況が「全量把握している」、他施設との重複が「重複していない」となっていますが、活動量が空欄となっています。","Error",{"$f":"+焼却!$N$85","v":0},null,null,{"$f":"+焼却!$J$85","v":0},null,"使用している",{"$f":"+焼却!$K$85","v":0},null,"全量把握している",{"$f":"+焼却!$L$85","v":0},null,"重複していない"]
["無回答","焼却","（４）施設における燃料使用量等","処理施設での燃料使用量等・ＬＮＧで「使用している」、データ把握の状況が「全量把握している」、他施設との重複が「重複していない」となっていますが、活動量が空欄となっています。","Error",{"$f":"+焼却!$N$86","v":0},null,null,{"$f":"+焼却!$J$86","v":0},null,"使用している",{"$f":"+焼却!$K$86","v":0},null,"全量把握している",{"$f":"+焼却!$L$86","v":0},null,"重複していない"]
["無回答","焼却","（４）施設における燃料使用量等","処理施設での燃料使用量等・都市ガスで「使用している」、データ把握の状況が「全量把握している」、他施設との重複が「重複していない」となっていますが、活動量が空欄となっています。","Error",{"$f":"+焼却!$N$87","v":0},null,null,{"$f":"+焼却!$J$87","v":0},null,"使用している",{"$f":"+焼却!$K$87","v":0},null,"全量把握している",{"$f":"+焼却!$L$87","v":0},null,"重複していない"]
[{"$f":"+A67","v":"無回答"},"焼却","（３）施設における燃料使用量等","処理施設での燃料使用量等・石炭コークスで「使用している」、データ把握の状況が「全量把握している」、他施設との重複が「重複していない」となっていますが、活動量が空欄となっています。","Error",{"$f":"+焼却!$N$88","v":0},null,null,{"$f":"+焼却!$J$88","v":0},null,"使用している",{"$f":"+焼却!$K$88","v":0},null,"全量把握している",{"$f":"+焼却!$L$88","v":0},null,"重複していない"]
[{"$f":"+A68","v":"無回答"},"焼却","（４）施設における燃料使用量等","処理施設での燃料使用量等・石油コークスで「使用している」、データ把握の状況が「全量把握している」、他施設との重複が「重複していない」となっていますが、活動量が空欄となっています。","Error",{"$f":"+焼却!$N$89","v":0},null,null,{"$f":"+焼却!$J$89","v":0},null,"使用している",{"$f":"+焼却!$K$89","v":0},null,"全量把握している",{"$f":"+焼却!$L$89","v":0},null,"重複していない"]
["無回答","焼却","（４）施設における燃料使用量等","処理施設での燃料使用量等・発電電力量で「使用している」、データ把握の状況が「全量把握している」、他施設との重複が「重複していない」となっていますが、活動量が空欄となっています。","Error",{"$f":"+焼却!$N$90","v":0},null,null,{"$f":"+焼却!$J$90","v":0},null,"使用している",{"$f":"+焼却!$K$90","v":0},null,"全量把握している",{"$f":"+焼却!$L$90","v":0},null,"重複していない"]
["無回答","焼却","（４）施設における燃料使用量等","処理施設での燃料使用量等・購入電力量で「使用している」、データ把握の状況が「全量把握している」、他施設との重複が「重複していない」となっていますが、活動量が空欄となっています。","Error",{"$f":"+焼却!$N$91","v":0},null,null,{"$f":"+焼却!$J$91","v":0},null,"使用している",{"$f":"+焼却!$K$91","v":0},null,"全量把握している",{"$f":"+焼却!$L$91","v":0},null,"重複していない"]
["無回答","焼却","（４）施設における燃料使用量等","処理施設での燃料使用量等・売却電力量で「使用している」、データ把握の状況が「全量把握している」、他施設との重複が「重複していない」となっていますが、活動量が空欄となっています。","Error",{"$f":"+焼却!$N$92","v":0},null,null,{"$f":"+焼却!$J$92","v":0},null,"使用している",{"$f":"+焼却!$K$92","v":0},null,"全量把握している",{"$f":"+焼却!$L$92","v":0},null,"重複していない"]
["無回答","焼却","（４）施設における燃料使用量等","処理施設での燃料使用量等・他施設へ供給した電力量で「使用している」、データ把握の状況が「全量把握している」、他施設との重複が「重複していない」となっていますが、活動量が空欄となっています。","Error",{"$f":"+焼却!$N$93","v":0},null,null,{"$f":"+焼却!$J$93","v":0},null,"使用している",{"$f":"+焼却!$K$93","v":0},null,"全量把握している",{"$f":"+焼却!$L$93","v":0},null,"重複していない"]
["無回答","焼却","（４）施設における燃料使用量等","処理施設での燃料使用量等・関連する施設から供給された電力量で「使用している」、データ把握の状況が「全量把握している」、他施設との重複が「重複していない」となっていますが、活動量が空欄となっています。","Error",{"$f":"+焼却!$N$94","v":0},null,null,{"$f":"+焼却!$J$94","v":0},null,"使用している",{"$f":"+焼却!$K$94","v":0},null,"全量把握している",{"$f":"+焼却!$L$94","v":0},null,"重複していない"]
["無回答","焼却","（４）施設における燃料使用量等","処理施設での燃料使用量等・当該施設で使用した電力量で「使用している」、データ把握の状況が「全量把握している」、他施設との重複が「重複していない」となっていますが、活動量が空欄となっています。","Error",{"$f":"+焼却!$N$95","v":0},null,null,{"$f":"+焼却!$J$95","v":0},null,"使用している",{"$f":"+焼却!$K$95","v":0},null,"全量把握している",{"$f":"+焼却!$L$95","v":0},null,"重複していない"]
["無回答","焼却","（４）施設における燃料使用量等","廃プラスチック焼却量で「使用している」、データ把握の状況が「全量把握している」、他施設との重複が「重複していない」となっていますが、活動量が空欄となっています。","Error",{"$f":"+焼却!$N$96","v":0},null,null,{"$f":"+焼却!$J$96","v":0},null,"使用している",{"$f":"+焼却!$K$96","v":0},null,"全量把握している",{"$f":"+焼却!$L$96","v":0},null,"重複していない"]
["非該当","焼却","（４）施設における燃料使用量等","処理施設での燃料使用量等・灯油で使用していないと回答しているのに、活動量が回答されています。","Error",{"$f":"+焼却!$N$80","v":0},"<>",null,{"$f":"+焼却!$J$80","v":0},null,"使用していない"]
["非該当","焼却","（４）施設における燃料使用量等","処理施設での燃料使用量等・揮発油で使用していないと回答しているのに、活動量が回答されています。","Error",{"$f":"+焼却!$N$81","v":0},"<>",null,{"$f":"+焼却!$J$81","v":0},null,"使用していない"]
["非該当","焼却","（４）施設における燃料使用量等","処理施設での燃料使用量等・軽油で使用していないと回答しているのに、活動量が回答されています。","Error",{"$f":"+焼却!$N$82","v":0},"<>",null,{"$f":"+焼却!$J$82","v":0},null,"使用していない"]
["非該当","焼却","（４）施設における燃料使用量等","処理施設での燃料使用量等・Ａ重油で使用していないと回答しているのに、活動量が回答されています。","Error",{"$f":"+焼却!$N$83","v":0},"<>",null,{"$f":"+焼却!$J$83","v":0},null,"使用していない"]
["非該当","焼却","（４）施設における燃料使用量等","処理施設での燃料使用量等・Ｂ重油又はＣ重油で使用していないと回答しているのに、活動量が回答されています。","Error",{"$f":"+焼却!$N$84","v":0},"<>",null,{"$f":"+焼却!$J$84","v":0},null,"使用していない"]
["非該当","焼却","（４）施設における燃料使用量等","処理施設での燃料使用量等・ＬＰＧで使用していないと回答しているのに、活動量が回答されています。","Error",{"$f":"+焼却!$N$85","v":0},"<>",null,{"$f":"+焼却!$J$85","v":0},null,"使用していない"]
["非該当","焼却","（４）施設における燃料使用量等","処理施設での燃料使用量等・ＬＮＧで使用していないと回答しているのに、活動量が回答されています。","Error",{"$f":"+焼却!$N$86","v":0},"<>",null,{"$f":"+焼却!$J$86","v":0},null,"使用していない"]
["非該当","焼却","（４）施設における燃料使用量等","処理施設での燃料使用量等・都市ガスで使用していないと回答しているのに、活動量が回答されています。","Error",{"$f":"+焼却!$N$87","v":0},"<>",null,{"$f":"+焼却!$J$87","v":0},null,"使用していない"]
["非該当",{"$f":"+getsn(F86)","v":"焼却"},"（３）施設における燃料使用量等","処理施設での燃料使用量等・石炭コークスで使用していないと回答しているのに、活動量が回答されています。","Error",{"$f":"+焼却!$N$88","v":0},"<>",null,{"$f":"+焼却!$J$88","v":0},null,"使用していない"]
["非該当","焼却","（４）施設における燃料使用量等","処理施設での燃料使用量等・石油コークスで使用していないと回答しているのに、活動量が回答されています。","Error",{"$f":"+焼却!$N$89","v":0},"<>",null,{"$f":"+焼却!$J$89","v":0},null,"使用していない"]
["非該当","焼却","（４）施設における燃料使用量等","処理施設での燃料使用量等・発電電力量で使用していないと回答しているのに、活動量が回答されています。","Error",{"$f":"+焼却!$N$90","v":0},"<>",null,{"$f":"+焼却!$J$90","v":0},null,"使用していない"]
["非該当","焼却","（４）施設における燃料使用量等","処理施設での燃料使用量等・購入電力量で使用していないと回答しているのに、活動量が回答されています。","Error",{"$f":"+焼却!$N$91","v":0},"<>",null,{"$f":"+焼却!$J$91","v":0},null,"使用していない"]
["非該当",{"$f":"+getsn(F90)","v":"焼却"},"（４）施設における燃料使用量等","処理施設での燃料使用量等・売電電力量で使用していないと回答しているのに、活動量が回答されています。","Error",{"$f":"+焼却!$N$92","v":0},"<>",null,{"$f":"+焼却!$J$92","v":0},null,"使用していない"]
["非該当","焼却","（４）施設における燃料使用量等","処理施設での燃料使用量等・他施設へ供給した電力量で使用していないと回答しているのに、活動量が回答されています。","Error",{"$f":"+焼却!$N$93","v":0},"<>",null,{"$f":"+焼却!$J$93","v":0},null,"使用していない"]
["非該当","焼却","（４）施設における燃料使用量等","処理施設での燃料使用量等・関連する施設から供給された電力量で使用していないと回答しているのに、活動量が回答されています。","Error",{"$f":"+焼却!$N$94","v":0},"<>",null,{"$f":"+焼却!$J$94","v":0},null,"使用していない"]
["非該当","焼却","（４）施設における燃料使用量等","処理施設での燃料使用量等・当該施設で使用した電力量で使用していないと回答しているのに、活動量が回答されています。","Error",{"$f":"+焼却!$N$95","v":0},"<>",null,{"$f":"+焼却!$J$95","v":0},null,"使用していない"]
["非該当","焼却","（４）施設における燃料使用量等","廃プラスチック焼却量で使用していないと回答しているのに、活動量が回答されています。","Error",{"$f":"+焼却!$N$96","v":0},"<>",null,{"$f":"+焼却!$J$96","v":0},null,"使用していない"]
["無回答","粗大","（１）施設名称","施設名称が無回答です。","Error",{"$f":"+粗大!$J$8","v":0}]
["無回答",{"$f":"+getsn(F96)","v":"粗大"},"（１）施設名称","施設の設置者(法人にあっては法人名)が無回答です。","Error",{"$f":"+粗大!$J$8","v":0}]
["無回答","粗大","（１）施設名称","施設の所在地が無回答です。","Error",{"$f":"+粗大!$J$8","v":0}]
["無回答",{"$f":"+getsn(F98)","v":"粗大"},"（１）施設名称","施設設置時の届出・許可が無回答です。","Error",{"$f":"+粗大!$E$7","v":"選択してください"},"=","選択してください"]
["無回答",{"$f":"+getsn(F99)","v":"粗大"},"（１）施設名称","施設設置時の届出・許可が無回答です。","Error",{"$f":"+粗大!$E$7","v":"選択してください"}]
["無回答",{"$f":"+getsn(F100)","v":"粗大"},"（２）処理実績","年間処理量が無回答です。","Warning",{"$f":"+粗大!$G$11","v":0}]
["無回答","粗大","（２）処理実績","資源化物回収量が無回答です。","Warning",{"$f":"+粗大!$G$12","v":0}]
["無回答","粗大","（２）処理実績","資源化物回収量が回答されているのに、資源化物回収量の「回収量」「搬出量」が無回答です。","Error",{"$f":"+粗大!$G$14:$H$14","v":{"$error":"#VALUE!"}},null,null,{"$f":"+粗大!$G$12","v":0},"<>"]
["無回答","粗大","（２）処理実績","産業廃棄物の搬入有無が無回答です。","Error",{"$f":"+粗大!$K$12:$L$12","v":{"$error":"#VALUE!"}}]
["非該当","粗大","（２）処理実績","産業廃棄物の搬入有無が有りなのに、一般廃棄物の割合が無回答です。","Error",{"$f":"+粗大!$K$14","v":0},null,null,{"$f":"+粗大!$K$12","v":0},null,1]
["非該当","粗大","（２）処理実績","産業廃棄物の搬入有無が無しなのに、一般廃棄物の割合が回答されています。","Error",{"$f":"+粗大!$K$14","v":0},"<>",null,{"$f":"+粗大!$L$12","v":0},null,1]
["無回答",{"$f":"+getsn(F106)","v":"粗大"},"（３）施設概要","官民連携の形態が無回答です。","Error",{"$f":"+粗大!$F$24:$L$24","v":0}]
["無回答",{"$f":"+getsn(F107)","v":"粗大"},"（３）施設概要","官民連携の形態で「その他」が選択されていますが、「その他→具体的に」が記載されていません。","Error",{"$f":"+粗大!$M$24","v":0},null,null,{"$f":"+粗大!$L$24","v":0},null,1]
["無回答",{"$f":"+getsn(F108)","v":"粗大"},"（３）施設概要","契約等の種別が無回答です。","Error",{"$f":"+粗大!$F$28:$I$28","v":0},null,null,{"$f":"+粗大!$F$24","v":0},"<>",1]
["無回答",{"$f":"+getsn(F109)","v":"粗大"},"（３）施設概要","契約等の種別で「その他」が選択されていますが、「その他→具体的に」が記載されていません。","Error",{"$f":"+粗大!$J$28","v":0},null,null,{"$f":"+粗大!$I$28","v":0},null,1]
["無回答",{"$f":"+getsn(F110)","v":"粗大"},"（３）施設概要","処理対象廃棄物が無回答です。","Error",{"$f":"+粗大!$F$31:$H$31,粗大!$F$33:$H$33","v":{"$error":"#VALUE!"}}]
["無回答","粗大","（３）施設概要","処理対象廃棄物で「その他」が選択されていますが、「その他→具体的に」が無回答です。","Error",{"$f":"+粗大!$I$31","v":0},null,null,{"$f":"+粗大!$H$31","v":0},null,1]
["無回答","粗大","（３）施設概要","処理方式が無回答です。","Error",{"$f":"+粗大!$F$36:$H$36","v":0}]
["無回答","粗大","（３）施設概要","処理能力が無回答です。","Error",{"$f":"+粗大!$L$30","v":0}]
["無回答","粗大","（３）施設概要","使用開始年度が無回答です。","Error",{"$f":"+粗大!$L$33","v":0}]
["単位ミス","粗大","（３）施設概要","使用開始年度の単位が間違っています。","Error",{"$f":"+粗大!$L$33","v":0},"<",1900,{"$f":"+粗大!$L$33","v":0},"<>"]
["無回答",{"$f":"+getsn(F116)","v":"粗大"},"（３）施設概要","計画稼働日数が無回答です。","Error",{"$f":"+粗大!$L$35","v":0}]
["無回答",{"$f":"+getsn(F117)","v":"粗大"},"（３）施設概要","施設の改廃で「移管元」を選択しているが、移管先の団体名が無回答です。","Error",{"$f":"+粗大!$I$42","v":0},null,null,{"$f":"+粗大!$F$42","v":0},null,1]
["無回答",{"$f":"+getsn(F118)","v":"粗大"},"（３）施設概要","施設の改廃で「移管先」を選択しているが、移管元の団体名が無回答です。","Error",{"$f":"+粗大!$I$42","v":0},null,null,{"$f":"+粗大!$G$42","v":0},null,1]
["無回答","粗大","（３）施設概要","施設の改廃で「移管先」を選択しているが、移管元の施設種別が無回答です。","Error",{"$f":"+粗大!$K$42","v":0},null,null,{"$f":"+粗大!$G$42","v":0},null,1]
["無回答","粗大","（３）施設概要","施設の改廃で「移管先」を選択しているが、移管元の施設名称が無回答です。","Error",{"$f":"+粗大!$L$42","v":0},null,null,{"$f":"+粗大!$G$42","v":0},null,1]
["無回答",{"$f":"+getsn(F121)","v":"粗大"},"（３）施設概要","契約電力会社名が無回答です。","Error",{"$f":"+粗大!$F$44","v":0}]
["無回答",{"$f":"+getsn(F122)","v":"資源化"},"（１）施設名称","施設名称が無回答です。","Error",{"$f":"+資源化!$J$6","v":0}]
["無回答",{"$f":"+getsn(F123)","v":"資源化"},"（１）施設名称","施設の設置者(法人にあっては法人名)が無回答です。","Error",{"$f":"+資源化!$J$7","v":0}]
["無回答","資源化","（１）施設名称","施設の所在地が無回答です。","Error",{"$f":"+資源化!$J$8","v":0}]
["無回答","資源化","（１）施設名称","施設設置時の届出・許可が無回答です。","Error",{"$f":"+資源化!$E$7","v":"選択してください"},"=","選択してください"]
["無回答",{"$f":"+getsn(F126)","v":"資源化"},"（１）施設名称","施設設置時の届出・許可が無回答です。","Error",{"$f":"+資源化!$E$7","v":"選択してください"}]
["無回答","資源化","（２）処理実績","年間処理量が無回答です。","Warning",{"$f":"+資源化!$G$10","v":0}]
["無回答","資源化","（２）処理実績","資源化物回収量が無回答です。","Warning",{"$f":"+資源化!$G$11:$G$12","v":{"$error":"#VALUE!"}}]
["無回答",{"$f":"+getsn(F129)","v":"資源化"},"（２）処理実績","資源化物回収量の入力が行われていますが、資源化物回収量「搬出量」「在庫量」が無回答です。","Error",{"$f":"+資源化!$G$14:$K$14","v":{"$error":"#VALUE!"}},null,null,{"$f":"+資源化!$G$11:$G$12","v":{"$error":"#VALUE!"}},">",0]
["無回答","資源化","（２）処理実績","産業廃棄物の搬入有無が無回答です。","Error",{"$f":"+資源化!$K$12:$L$12","v":{"$error":"#VALUE!"}}]
["非該当","資源化","（２）処理実績","産業廃棄物の搬入有無が有りなのに、一般廃棄物の割合が無回答です。","Error",{"$f":"+資源化!$K$14","v":0},null,null,{"$f":"+資源化!$K$12","v":0},null,1]
["非該当","資源化","（２）処理実績","産業廃棄物の搬入有無が無しなのに、一般廃棄物の割合が回答されています。","Error",{"$f":"+資源化!$K$14","v":0},"<>",null,{"$f":"+資源化!$L$12","v":0},null,1]
["無回答",{"$f":"+getsn(F133)","v":"資源化"},"（３）施設概要","官民連携の形態が無回答です。","Error",{"$f":"+資源化!$F$24:$L$24","v":0}]
["無回答",{"$f":"+getsn(F134)","v":"資源化"},"（３）施設概要","官民連携の形態で「その他」が選択されていますが、「その他→具体的に」が記載されていません。","Error",{"$f":"+資源化!$M$24","v":0},null,null,{"$f":"+資源化!$L$24","v":0},null,1]
["無回答",{"$f":"+getsn(F135)","v":"資源化"},"（３）施設概要","契約等の種別が無回答です。","Error",{"$f":"+資源化!$F$28:$I$28","v":0},null,null,{"$f":"+資源化!$F$24","v":0},"<>",1]
["無回答",{"$f":"+getsn(F136)","v":"資源化"},"（３）施設概要","契約等の種別で「その他」が選択されていますが、「その他→具体的に」が記載されていません。","Error",{"$f":"+資源化!$J$28","v":0},null,null,{"$f":"+資源化!$I$28","v":0},null,1]
["無回答",{"$f":"+getsn(F137)","v":"資源化"},"（３）施設概要","処理対象廃棄物が無回答です。","Error",{"$f":"+資源化!$F$31:$M$31,資源化!$F$33:$M$33","v":{"$error":"#VALUE!"}}]
["無回答","資源化","（３）施設概要","処理対象廃棄物で「その他」が選択されていますが、「その他→具体的に」が無回答です。","Warning",{"$f":"+資源化!$N$33","v":0},null,null,{"$f":"+資源化!$M$33","v":0},null,1]
["無回答",{"$f":"+getsn(F139)","v":"資源化"},"（３）施設概要","処理内容ごとの処理能力が無回答です。","Error",{"$f":"+資源化!$F$36:$H$36,資源化!$F$38:$G$38","v":{"$error":"#VALUE!"}}]
["無回答","資源化","（３）施設概要","処理内容ごとの処理能力で「その他」が入力されていますが、「その他→具体的に」が無回答です。","Warning",{"$f":"+資源化!$H$38","v":0},null,null,{"$f":"+資源化!$G$38","v":0},">",0]
["無回答","資源化","（３）施設概要","施設全体の処理能力が無回答です。","Error",{"$f":"+資源化!$L$35","v":0}]
["無回答","資源化","（３）施設概要","使用開始年度が無回答です。","Error",{"$f":"+資源化!$L$37","v":0}]
["単位ミス","資源化","（３）施設概要","使用開始年度の単位が間違っています。","Error",{"$f":"+資源化!$L$37","v":0},"<",1900,{"$f":"+資源化!$L$37","v":0},"<>"]
["無回答",{"$f":"+getsn(F144)","v":"資源化"},"（３）施設概要","計画稼働日数が無回答です。","Error",{"$f":"+資源化!$L$38","v":0}]
["無回答",{"$f":"+getsn(F145)","v":"資源化"},"（３）施設概要","施設の改廃で「移管元」を選択しているが、移管先の団体名が無回答です。","Error",{"$f":"+資源化!$I$44","v":0},null,null,{"$f":"+資源化!$F$44","v":0},null,1]
["無回答",{"$f":"+getsn(F146)","v":"資源化"},"（３）施設概要","施設の改廃で「移管先」を選択しているが、移管元の団体名が無回答です。","Error",{"$f":"+資源化!$I$44","v":0},null,null,{"$f":"+資源化!$G$44","v":0},null,1]
["無回答","資源化","（３）施設概要","施設の改廃で「移管先」を選択しているが、移管元の施設種別が無回答です。","Error",{"$f":"+資源化!$K$44","v":0},null,null,{"$f":"+資源化!$G$44","v":0},null,1]
["無回答","資源化","（３）施設概要","施設の改廃で「移管先」を選択しているが、移管元の施設名称が無回答です。","Error",{"$f":"+資源化!$L$44","v":0},null,null,{"$f":"+資源化!$G$44","v":0},null,1]
["無回答",{"$f":"+getsn(F149)","v":"資源化"},"（３）施設概要","契約電力会社名が無回答です。","Error",{"$f":"+資源化!$F$46","v":0}]
["無回答",{"$f":"+getsn(F150)","v":"燃料化"},"（１）施設名称","施設名称が無回答です。","Error",{"$f":"+燃料化!$J$6","v":0}]
["無回答",{"$f":"+getsn(F151)","v":"燃料化"},"（１）施設名称","施設の設置者(法人にあっては法人名)が無回答です。","Error",{"$f":"+燃料化!$J$7","v":0}]
["無回答",{"$f":"+getsn(F152)","v":"燃料化"},"（１）施設名称","施設の所在地が無回答です。","Error",{"$f":"+燃料化!$J$8","v":0}]
["無回答",{"$f":"+getsn(F153)","v":"燃料化"},"（１）施設名称","施設設置時の届出・許可が無回答です。","Error",{"$f":"+燃料化!$E$7","v":"選択してください"},"=","選択してください"]
["無回答",{"$f":"+getsn(F154)","v":"燃料化"},"（１）施設名称","施設設置時の届出・許可が無回答です。","Error",{"$f":"+燃料化!$E$7","v":"選択してください"}]
["無回答",{"$f":"+getsn(F155)","v":"燃料化"},"（２）処理実績","年間処理量が無回答です。","Warning",{"$f":"+燃料化!$G$10:$G$11","v":{"$error":"#VALUE!"}}]
["無回答","燃料化","（２）処理実績","燃料化量が無回答です。","Warning",{"$f":"+燃料化!$G$12:$G$13","v":{"$error":"#VALUE!"}}]
["無回答","燃料化","（２）処理実績","燃料化量が入力されていますが、「生産量」「搬出量」が無回答です。","Error",{"$f":"+燃料化!$G$15:$H$15","v":{"$error":"#VALUE!"}},null,null,{"$f":"+燃料化!$G$12:$G$13","v":{"$error":"#VALUE!"}},">",0]
["無回答","燃料化","（２）処理実績","産業廃棄物の搬入有無の有り・無しが無回答です。","Error",{"$f":"+燃料化!$K$11:$L$11","v":{"$error":"#VALUE!"}}]
["非該当","燃料化","（２）処理実績","産業廃棄物の搬入有無が有りなのに、一般廃棄物の割合が無回答です。","Error",{"$f":"+燃料化!$K$13","v":0},null,null,{"$f":"+燃料化!$K$11","v":0},null,1]
["非該当","燃料化","（２）処理実績","産業廃棄物の搬入有無が無しなのに、一般廃棄物の割合が回答されています。","Error",{"$f":"+燃料化!$K$13","v":0},"<>",null,{"$f":"+燃料化!$L$11","v":0},null,1]
["無回答",{"$f":"+getsn(F161)","v":"燃料化"},"（３）施設概要","官民連携の形態が無回答です。","Error",{"$f":"+燃料化!$F$25:$L$25","v":0}]
["無回答",{"$f":"+getsn(F162)","v":"燃料化"},"（３）施設概要","官民連携の形態で「その他」が選択されていますが、「その他→具体的に」が記載されていません。","Error",{"$f":"+燃料化!$M$25","v":0},null,null,{"$f":"+燃料化!$L$25","v":0},null,1]
["無回答",{"$f":"+getsn(F163)","v":"燃料化"},"（３）施設概要","契約等の種別が無回答です。","Error",{"$f":"+燃料化!$F$29:$I$29","v":0},null,null,{"$f":"+燃料化!$F$25","v":0},"<>",1]
["無回答",{"$f":"+getsn(F164)","v":"燃料化"},"（３）施設概要","契約等の種別で「その他」が選択されていますが、「その他→具体的に」が記載されていません。","Error",{"$f":"+燃料化!$J$29","v":0},null,null,{"$f":"+燃料化!$I$29","v":0},null,1]
["無回答",{"$f":"+getsn(F165)","v":"燃料化"},"（３）施設概要","処理対象廃棄物が無回答です。","Error",{"$f":"+燃料化!$F$32:$L$32,燃料化!$F$34:$L$34","v":{"$error":"#VALUE!"}}]
["無回答","燃料化","（３）施設概要","処理対象廃棄物で「その他」が選択されていますが、「その他→具体的に」が無回答です。","Warning",{"$f":"+燃料化!$M$34","v":0},null,null,{"$f":"+燃料化!$L$34","v":0},null,1]
["無回答","燃料化","（３）施設概要","施設の種類が無回答です。","Error",{"$f":"+燃料化!$F$37:K37,燃料化!$F$39:$G$39","v":{"$error":"#VALUE!"}}]
["無回答","燃料化","（３）施設概要","処理能力が無回答です。","Error",{"$f":"+燃料化!$L$41","v":0}]
["無回答","燃料化","（３）施設概要","使用開始年度が無回答です。","Error",{"$f":"+燃料化!$L$42","v":0}]
["単位ミス","燃料化","（３）施設概要","使用開始年度の単位が間違っています。","Error",{"$f":"+燃料化!$L$42","v":0},"<",1900,{"$f":"+燃料化!$L$42","v":0},"<>"]
["無回答",{"$f":"+getsn(F171)","v":"燃料化"},"（３）施設概要","計画稼働日数が無回答です。","Error",{"$f":"+燃料化!$L$43","v":0}]
["無回答","燃料化","（３）施設概要","燃料化量が有るのに、生成物供給先の確保状況が無回答です。","Error",{"$f":"+燃料化!$F$42:$H$42","v":0},null,null,{"$f":"+燃料化!$G$12:$G$13","v":{"$error":"#VALUE!"}},">",0]
["無回答",{"$f":"+getsn(F173)","v":"燃料化"},"（３）施設概要","施設の改廃で「移管元」を選択しているが、移管先の団体名が無回答です。","Error",{"$f":"+燃料化!$I$48","v":0},null,null,{"$f":"+燃料化!$F$48","v":0},null,1]
["無回答",{"$f":"+getsn(F174)","v":"燃料化"},"（３）施設概要","施設の改廃で「移管先」を選択しているが、移管元の団体名が無回答です。","Error",{"$f":"+燃料化!$I$48","v":0},null,null,{"$f":"+燃料化!$G$48","v":0},null,1]
["無回答","燃料化","（３）施設概要","施設の改廃で「移管先」を選択しているが、移管元の施設種別が無回答です。","Error",{"$f":"+燃料化!$K$48","v":0},null,null,{"$f":"+燃料化!$G$48","v":0},null,1]
["無回答","燃料化","（３）施設概要","施設の改廃で「移管先」を選択しているが、移管元の施設名称が無回答です。","Error",{"$f":"+燃料化!$L$48","v":0},null,null,{"$f":"+燃料化!$G$48","v":0},null,1]
["数値確認",{"$f":"+getsn(F177)","v":"燃料化"},"（３）施設概要","メタン化を選択した場合、発電能力を確認してください。","Warning",{"$f":"+燃料化!$G$50","v":0},null,null,{"$f":"+燃料化!$H$37:$I$37","v":0},null,1]
["非該当","燃料化","（３）施設概要","発電能力が0より大きい場合、発電効率を確認してください（必ず！）。","Warning",{"$f":"+燃料化!$G$50","v":0},">",0,{"$f":"+燃料化!$G$51","v":0}]
["非該当","燃料化","（３）施設概要","「総発電量」が入力されていますが、「うち外部供給量」が無回答です。","Warning",{"$f":"+燃料化!$G$52","v":0},"<>",null,{"$f":"+燃料化!$G$53","v":0}]
["非該当",{"$f":"+getsn(F180)","v":"燃料化"},"（３）施設概要","「うち外部供給量」が入力されていますが、「総発電量」が無回答です。","Error",{"$f":"+燃料化!$G$53","v":0},"<>",null,{"$f":"+燃料化!$G$52","v":0}]
["非該当","燃料化","（３）施設概要","「総発電量」が入力されている場合は「売電量」を確認してください。","Warning",{"$f":"+燃料化!$G$52","v":0},"<>",null,{"$f":"+燃料化!$H$59","v":0}]
["非該当","燃料化","（３）施設概要","売電量が0より大きい場合、売電収入も0より大きい値になります。","Error",{"$f":"+燃料化!$H$60","v":0},null,0,{"$f":"+燃料化!$H$59","v":0},">",0]
["無回答","燃料化","（３）施設概要","契約電力会社名（受電）が無回答です。","Error",{"$f":"+燃料化!$F$55","v":0}]
["無回答",{"$f":"+getsn(F184)","v":"その他"},"（１）施設名称","施設名称が無回答です。","Error",{"$f":"+その他!$J$8","v":0}]
["無回答","その他","（１）施設名称","施設の設置者(法人にあっては法人名)が無回答です。","Error",{"$f":"+その他!$J$8","v":0}]
["無回答","その他","（１）施設名称","施設の所在地が無回答です。","Error",{"$f":"+その他!$J$8","v":0}]
["無回答",{"$f":"+getsn(F187)","v":"その他"},"（１）施設名称","施設設置時の届出・許可が無回答です。","Error",{"$f":"+その他!$E$7","v":"選択してください"},"=","選択してください"]
["無回答",{"$f":"+getsn(F188)","v":"その他"},"（１）施設名称","施設設置時の届出・許可が無回答です。","Error",{"$f":"+その他!$E$7","v":"選択してください"}]
["無回答","その他","（２）処理実績","年間処理量が無回答です。","Warning",{"$f":"+その他!$G$10","v":0}]
["無回答","その他","（２）処理実績","産業廃棄物の搬入有無の有り・無しが無回答です。","Error",{"$f":"+その他!$K$11:$L$11","v":{"$error":"#VALUE!"}}]
["非該当","その他","（２）処理実績","産業廃棄物の搬入有無が有りなのに、一般廃棄物の割合が無回答です。","Error",{"$f":"+その他!$K$13","v":0},null,null,{"$f":"+その他!$K$11","v":0},null,1]
["非該当","その他","（２）処理実績","産業廃棄物の搬入有無が無しなのに、一般廃棄物の割合が回答されています。","Error",{"$f":"+その他!$K$13","v":0},"<>",null,{"$f":"+その他!$L$11","v":0},null,1]
["無回答",{"$f":"+getsn(F193)","v":"その他"},"（３）施設概要","官民連携の形態が無回答です。","Error",{"$f":"+その他!$F$23:$L$23","v":0}]
["無回答",{"$f":"+getsn(F194)","v":"その他"},"（３）施設概要","官民連携の形態で「その他」が選択されていますが、「その他→具体的に」が記載されていません。","Error",{"$f":"+その他!$M$23","v":0},null,null,{"$f":"+その他!$L$23","v":0},null,1]
["無回答",{"$f":"+getsn(F195)","v":"その他"},"（３）施設概要","契約等の種別が無回答です。","Error",{"$f":"+その他!$F$27:$I$27","v":0},null,null,{"$f":"+その他!$F$23","v":0},"<>",1]
["無回答",{"$f":"+getsn(F196)","v":"その他"},"（３）施設概要","契約等の種別で「その他」が選択されていますが、「その他→具体的に」が記載されていません。","Error",{"$f":"+その他!$J$27","v":0},null,null,{"$f":"+その他!$I$27","v":0},null,1]
["無回答",{"$f":"+getsn(F197)","v":"その他"},"（３）施設概要","処理対象廃棄物が無回答です。","Error",{"$f":"+その他!$F$30:$K$30","v":0}]
["無回答","その他","（３）施設概要","処理対象廃棄物で「その他」が選択されていますが、「その他→具体的に」が無回答です。","Warning",{"$f":"+その他!$L$30","v":0},null,null,{"$f":"+その他!$K$30","v":0},null,1]
["無回答",{"$f":"+getsn(F199)","v":"その他"},"（３）施設概要","処理内容が無回答です。","Error",{"$f":"+その他!$F$33:$H$33","v":0}]
["無回答","その他","（３）施設概要","処理内容で「その他」が選択されていますが、「その他→具体的に」が無回答です。","Warning",{"$f":"+その他!$I$33","v":0},null,null,{"$f":"+その他!$H$33","v":0},null,1]
["無回答","その他","（３）施設概要","処理能力が無回答です。","Error",{"$f":"+その他!$L$32","v":0}]
["無回答","その他","（３）施設概要","使用開始年度が無回答です。","Error",{"$f":"+その他!$L$33","v":0}]
["単位ミス","その他","（３）施設概要","使用開始年度の単位が間違っています。","Error",{"$f":"+その他!$L$33","v":0},"<",1900,{"$f":"+その他!$L$33","v":0},"<>"]
["無回答",{"$f":"+getsn(F204)","v":"その他"},"（３）施設概要","計画稼働日数が無回答です。","Error",{"$f":"+その他!$L$34","v":0}]
["無回答",{"$f":"+getsn(F205)","v":"その他"},"（３）施設概要","施設の改廃で「移管元」を選択しているが、移管先の団体名が無回答です。","Error",{"$f":"+その他!$I$39","v":0},null,null,{"$f":"+その他!$F$39","v":0},null,1]
["無回答",{"$f":"+getsn(F206)","v":"その他"},"（３）施設概要","施設の改廃で「移管先」を選択しているが、移管元の団体名が無回答です。","Error",{"$f":"+その他!$I$39","v":0},null,null,{"$f":"+その他!$G$39","v":0},null,1]
["無回答","その他","（３）施設概要","施設の改廃で「移管先」を選択しているが、移管元の施設種別が無回答です。","Error",{"$f":"+その他!$K$39","v":0},null,null,{"$f":"+その他!$G$39","v":0},null,1]
["無回答","その他","（３）施設概要","施設の改廃で「移管先」を選択しているが、移管元の施設名称が無回答です。","Error",{"$f":"+その他!$L$39","v":0},null,null,{"$f":"+その他!$G$39","v":0},null,1]
["無回答",{"$f":"+getsn(F209)","v":"その他"},"（３）施設概要","契約電力会社名が無回答です。","Error",{"$f":"+その他!$F$41","v":0}]
["無回答",{"$f":"+getsn(F210)","v":"最終処分"},"（１）施設名称","施設名称が無回答です。","Error",{"$f":"+最終処分!$J$8","v":0}]
["無回答",{"$f":"+getsn(F211)","v":"最終処分"},"（１）施設名称","施設の設置者(法人にあっては法人名)が無回答です。","Error",{"$f":"+最終処分!$J$8","v":0}]
["無回答","最終処分","（１）施設名称","施設の所在地が無回答です。","Error",{"$f":"+最終処分!$J$8","v":0}]
["無回答",{"$f":"+getsn(F213)","v":"最終処分"},"（１）施設名称","施設設置時の届出・許可が無回答です。","Error",{"$f":"+最終処分!$E$7","v":"選択してください"},"=","選択してください"]
["無回答",{"$f":"+getsn(F214)","v":"最終処分"},"（１）施設名称","施設設置時の届出・許可が無回答です。","Error",{"$f":"+最終処分!$E$7","v":"選択してください"}]
["無回答","最終処分","（２）処理実績","埋立量（容積）（覆土を含む）が無回答です。","Warning",{"$f":"+最終処分!$G$10","v":0}]
["無回答","最終処分","（２）処理実績","埋立量（重量）（覆土を含まない）が無回答です。","Warning",{"$f":"+最終処分!$G$12","v":0}]
["無回答","最終処分","（２）処理実績","残余容量が無回答です。","Warning",{"$f":"+最終処分!$G$14","v":0}]
["無回答","最終処分","（２）処理実績","産業廃棄物の搬入有無が無回答です。","Error",{"$f":"+最終処分!$K$12:$L$12","v":{"$error":"#VALUE!"}}]
["非該当","最終処分","（２）処理実績","産業廃棄物の搬入有無が有りなのに、一般廃棄物の割合が無回答です。","Error",{"$f":"+最終処分!$K$14","v":0},null,null,{"$f":"+最終処分!$K$12","v":0},null,1]
["非該当","最終処分","（２）処理実績","産業廃棄物の搬入有無が無しなのに、一般廃棄物の割合が回答されています。","Error",{"$f":"+最終処分!$K$14","v":0},"<>",null,{"$f":"+最終処分!$L$12","v":0},null,1]
["無回答",{"$f":"+getsn(F221)","v":"最終処分"},"（３）施設概要","官民連携の形態が無回答です。","Error",{"$f":"+最終処分!$F$24:$L$24","v":0}]
["無回答",{"$f":"+getsn(F222)","v":"最終処分"},"（３）施設概要","官民連携の形態で「その他」が選択されていますが、「その他→具体的に」が記載されていません。","Error",{"$f":"+最終処分!$M$24","v":0},null,null,{"$f":"+最終処分!$L$24","v":0},null,1]
["無回答",{"$f":"+getsn(F223)","v":"最終処分"},"（３）施設概要","契約等の種別が無回答です。","Error",{"$f":"+最終処分!$F$28:$I$28","v":0},null,null,{"$f":"+最終処分!$F$24","v":0},"<>",1]
["無回答",{"$f":"+getsn(F224)","v":"最終処分"},"（３）施設概要","契約等の種別で「その他」が選択されていますが、「その他→具体的に」が記載されていません。","Error",{"$f":"+最終処分!$J$28","v":0},null,null,{"$f":"+最終処分!$I$28","v":0},null,1]
["無回答",{"$f":"+getsn(F225)","v":"最終処分"},"（３）施設概要","処理対象廃棄物が無回答です。","Error",{"$f":"+最終処分!$F$31:$K$31,最終処分!$F$33:$I$33","v":{"$error":"#VALUE!"}}]
["無回答","最終処分","（３）施設概要","埋立場所が無回答です。","Error",{"$f":"+最終処分!$F$36:$I$36","v":0}]
["無回答","最終処分","（３）施設概要","遮水の方式が無回答です。","Error",{"$f":"+最終処分!$F$39:$I$39,最終処分!$F$41:$H$41","v":{"$error":"#VALUE!"}}]
["無回答","最終処分","（３）施設概要","埋立開始年度が無回答です。","Error",{"$f":"+最終処分!$L$37","v":0}]
["単位ミス","最終処分","（３）施設概要","埋立開始年度の単位が間違っています。","Error",{"$f":"+最終処分!$L$37","v":0},"<",1900,{"$f":"+最終処分!$L$37","v":0},"<>"]
["無回答","最終処分","（３）施設概要","埋立地面積が無回答です。","Error",{"$f":"+最終処分!$L$38","v":0}]
["無回答","最終処分","（３）施設概要","施設全体容量が無回答です。","Error",{"$f":"+最終処分!$L$39","v":0}]
["無回答","最終処分","（３）施設概要","埋立終了年度が無回答です。","Error",{"$f":"+最終処分!$L$40","v":0}]
["単位ミス",{"$f":"+getsn(F233)","v":"最終処分"},"（３）施設概要","埋立終了年度の単位が間違っています。","Error",{"$f":"+最終処分!$L$40","v":0},"<",1900,{"$f":"+最終処分!$L$40","v":0},"<>"]
["数値確認","最終処分","（３）施設概要","埋立終了年度が埋立開始年度より前の年度で指定されています。","Error",{"$f":"+最終処分!$L$40","v":0},"<",{"$f":"+最終処分!$L$37","v":0},{"$f":"+最終処分!$L$40","v":0},"<>"]
["無回答","最終処分","（３）施設概要","最終処分場の構造が無回答です。","Error",{"$f":"+最終処分!$F$44:$H$44","v":0}]
["無回答",{"$f":"+getsn(F236)","v":"最終処分"},"（３）施設概要","最終処分場の形式が無回答です。","Error",{"$f":"+最終処分!$L$44:$M$44","v":{"$error":"#VALUE!"}}]
["無回答","最終処分","（３）施設概要","最終処分場の構造で準好気姓埋立構造を選択しているのに、保有水等集排水管の水位管理が無回答です。","Error",{"$f":"+最終処分!$H$48:$I$48","v":{"$error":"#VALUE!"}},null,null,{"$f":"+最終処分!$G$44","v":0},null,1]
["無回答","最終処分","（３）施設概要","最終処分場の構造で準好気姓埋立構造を選択しているのに、覆土施工の状況が無回答です。","Error",{"$f":"+最終処分!$H$51:J51","v":{"$error":"#VALUE!"}},null,null,{"$f":"+最終処分!$G$44","v":0},null,1]
["無回答","最終処分","（３）施設概要","最終処分場の構造で準好気姓埋立構造を選択しているのに、ガス抜き管の計画的施工状況が無回答です。","Error",{"$f":"+最終処分!$H$54:J54","v":{"$error":"#VALUE!"}},null,null,{"$f":"+最終処分!$G$44","v":0},null,1]
["無回答","最終処分","（３）施設概要","浸出液の処理が無回答です。","Warning",{"$f":"+最終処分!$F$57:$K$57,最終処分!$F$59:$K$59","v":{"$error":"#VALUE!"}}]
["無回答","最終処分","（３）施設概要","メタンガス回収有無が無回答です。","Error",{"$f":"+最終処分!$F$62:$G$62","v":0}]
["無回答","最終処分","（３）施設概要","メタンガス回収有無で回収していると回答されているのに、メタンガス回収量等が無回答です。","Warning",{"$f":"+最終処分!$G$64:$G$66","v":{"$error":"#VALUE!"}},null,null,{"$f":"+最終処分!$F$62","v":0},null,1]
["無回答","最終処分","（３）施設概要","メタンガス回収有無で回収していると回答されているのに、メタンガスの利用方法が無回答です。","Error",{"$f":"+最終処分!$G$68:$I$68","v":{"$error":"#VALUE!"}},null,null,{"$f":"+最終処分!$F$62","v":0},null,1]
["無回答","最終処分","（３）施設概要","メタンガスの利用で発電が選択されているのに、「発電の場合：発電量」が無回答です。","Error",{"$f":"+最終処分!$L$68","v":0},null,null,{"$f":"+最終処分!$G$68","v":0},null,1]
["無回答","最終処分","（３）施設概要","処分場の現状が無回答です。","Error",{"$f":"+最終処分!$F$71:$H$71","v":0}]
["無回答",{"$f":"+getsn(F246)","v":"最終処分"},"（３）施設概要","施設の改廃で「移管元」を選択しているが、移管先の団体名が無回答です。","Error",{"$f":"+最終処分!$I$77","v":0},null,null,{"$f":"+最終処分!$F$77","v":0},null,1]
["無回答","最終処分","（３）施設概要","施設の改廃で「移管先」を選択しているが、移管元の団体名が無回答です。","Error",{"$f":"+最終処分!$I$77","v":0},null,null,{"$f":"+最終処分!$G$77","v":0},null,1]
["無回答","最終処分","（３）施設概要","施設の改廃で「移管先」を選択しているが、移管元の施設種別が無回答です。","Error",{"$f":"+最終処分!$K$77","v":0},null,null,{"$f":"+最終処分!$G$77","v":0},null,1]
["無回答","最終処分","（３）施設概要","施設の改廃で「移管先」を選択しているが、移管元の施設名称が無回答です。","Error",{"$f":"+最終処分!$L$77","v":0},null,null,{"$f":"+最終処分!$G$77","v":0},null,1]
["無回答",{"$f":"+getsn(F250)","v":"最終処分"},"（３）施設概要","契約電力会社名が無回答です。","Error",{"$f":"+最終処分!$F$79","v":0}]
["無回答",{"$f":"+getsn(F251)","v":"し尿"},"（１）施設名称","施設名称が無回答です。","Error",{"$f":"+し尿!$J$6","v":0}]
["無回答",{"$f":"+getsn(F252)","v":"し尿"},"（１）施設名称","施設の設置者(法人にあっては法人名)が無回答です。","Error",{"$f":"+し尿!$J$7","v":0}]
["無回答","し尿","（１）施設名称","施設の所在地が無回答です。","Error",{"$f":"+し尿!$J$8","v":0}]
["無回答",{"$f":"+getsn(F254)","v":"し尿"},"（１）施設名称","施設設置時の届出・許可が無回答です。","Error",{"$f":"+し尿!$E$7","v":"選択してください"},"=","選択してください"]
["無回答",{"$f":"+getsn(F255)","v":"し尿"},"（１）施設名称","施設設置時の届出・許可が無回答です。","Error",{"$f":"+し尿!$E$7","v":"選択してください"}]
["無回答","し尿","（２）処理実績","年間処理量が無回答です。","Warning",{"$f":"+し尿!$G$10:$G$13","v":{"$error":"#VALUE!"}}]
["無回答","し尿","（２）処理実績","資源化物量が無回答です。","Warning",{"$f":"+し尿!$G$14:$G$15","v":{"$error":"#VALUE!"}}]
["無回答","し尿","（２）処理実績","資源化物量の「堆肥等の固形物」「メタンガス」が回答されているのに、「生産量」「排出量・売却量」が無回答です。","Error",{"$f":"+し尿!$G$19:$H$19","v":{"$error":"#VALUE!"}},null,null,{"$f":"+し尿!$G$14:$G$15","v":{"$error":"#VALUE!"}},">",0]
["無回答","し尿","（２）処理実績","脱水汚泥の直接埋立の有無が無回答です。","Error",{"$f":"+し尿!$G$21:$H$21","v":{"$error":"#VALUE!"}}]
["無回答","し尿","（２）処理実績","脱水汚泥の直接埋立の有無で直接埋立有りと回答されているのに、脱水汚泥の直接埋立量が無回答です。","Error",{"$f":"+し尿!$G$22","v":0},null,null,{"$f":"+し尿!$G$21","v":0},">",0]
["無回答","し尿","（２）処理実績","脱水汚泥の焼却の有無が無回答です。","Error",{"$f":"+し尿!$G$24:$I$24","v":{"$error":"#VALUE!"}}]
["無回答","し尿","（２）処理実績","脱水汚泥の焼却の有無で「焼却無し」以外が選択されているのに、脱水汚泥の焼却量が無回答です。","Error",{"$f":"+し尿!$G$25","v":0},null,null,{"$f":"+し尿!$G$24:$H$24","v":{"$error":"#VALUE!"}},">",0]
["無回答",{"$f":"+getsn(F263)","v":"し尿"},"（３）施設概要","官民連携の形態が無回答です。","Error",{"$f":"+し尿!$F$35:$L$35","v":0}]
["無回答",{"$f":"+getsn(F264)","v":"し尿"},"（３）施設概要","官民連携の形態で「その他」が選択されていますが、「その他→具体的に」が記載されていません。","Error",{"$f":"+し尿!$M$35","v":0},null,null,{"$f":"+し尿!$L$35","v":0},null,1]
["無回答",{"$f":"+getsn(F265)","v":"し尿"},"（３）施設概要","契約等の種別が無回答です。","Error",{"$f":"+し尿!$F$39:$I$39","v":0},null,null,{"$f":"+し尿!$F$35","v":0},"<>",1]
["無回答",{"$f":"+getsn(F266)","v":"し尿"},"（３）施設概要","契約等の種別で「その他」が選択されていますが、「その他→具体的に」が記載されていません。","Error",{"$f":"+し尿!$J$39","v":0},null,null,{"$f":"+し尿!$I$39","v":0},null,1]
["無回答",{"$f":"+getsn(F267)","v":"し尿"},"（３）施設概要","処理方法（汚水処理）が無回答です。","Error",{"$f":"+し尿!$F$42:$M$42,し尿!$F$44:$K$44","v":{"$error":"#VALUE!"}}]
["無回答","し尿","（３）施設概要","処理方法（汚水処理）で「その他」が選択されていますが、「その他→具体的に」が無回答です。","Warning",{"$f":"+し尿!$L$44","v":0},null,null,{"$f":"+し尿!$K$44","v":0},null,1]
["無回答",{"$f":"+getsn(F269)","v":"し尿"},"（３）施設概要","処理方法（汚泥処理）が無回答です。","Error",{"$f":"+し尿!$F$47:$I$47","v":0}]
["無回答","し尿","（３）施設概要","処理方法（汚泥処理）で「その他」が選択されていますが、「その他→具体的に」が無回答です。","Warning",{"$f":"+し尿!$J$47","v":0},null,null,{"$f":"+し尿!$I$47","v":0},null,1]
["無回答","し尿","（３）施設概要","処理能力が無回答です。","Error",{"$f":"+し尿!$L$46","v":0}]
["無回答","し尿","（３）施設概要","処理能力（有機性廃棄物）が無回答です。","Warning",{"$f":"+し尿!$L$47","v":0}]
["無回答",{"$f":"+getsn(F273)","v":"し尿"},"（３）施設概要","資源化能力が無回答です。","Error",{"$f":"+し尿!$L$48","v":0}]
["無回答","し尿","（３）施設概要","計画メタンガス(バイオガス)量が無回答です。","Error",{"$f":"+し尿!$L$49","v":0}]
["無回答","し尿","（３）施設概要","使用開始年度が無回答です。","Error",{"$f":"+し尿!$L$51","v":0}]
["単位ミス","し尿","（３）施設概要","使用開始年度の単位が間違っています。","Error",{"$f":"+し尿!$L$51","v":0},"<",1900,{"$f":"+し尿!$L$51","v":0},"<>"]
["無回答",{"$f":"+getsn(F277)","v":"し尿"},"（３）施設概要","計画稼働日数が無回答です。","Error",{"$f":"+し尿!$L$52","v":0}]
["無回答",{"$f":"+getsn(F278)","v":"し尿"},"（３）施設概要","施設の改廃で「移管元」を選択しているが、移管先の団体名が無回答です。","Error",{"$f":"+し尿!$I$68","v":0},null,null,{"$f":"+し尿!$F$68","v":0},null,1]
["無回答","し尿","（３）施設概要","施設の改廃で「移管先」を選択しているが、移管元の団体名が無回答です。","Error",{"$f":"+し尿!$I$68","v":0},null,null,{"$f":"+し尿!$G$68","v":0},null,1]
["無回答","し尿","（３）施設概要","施設の改廃で「移管先」を選択しているが、移管元の施設種別が無回答です。","Error",{"$f":"+し尿!$K$68","v":0},null,null,{"$f":"+し尿!$G$68","v":0},null,1]
["無回答","し尿","（３）施設概要","施設の改廃で「移管先」を選択しているが、移管元の施設名称が無回答です。","Error",{"$f":"+し尿!$L$68","v":0},null,null,{"$f":"+し尿!$G$68","v":0},null,1]
["無回答","し尿","（３）施設概要","契約電力会社名が無回答です。","Error",{"$f":"+し尿!$F$70","v":0}]

{"sheet":"修正フラグ","index":5,"n_rows":2,"n_cols":16,"rows_kept":2,"cut":false,"hidden":true,"merged":[[0,11,0,15],[0,0,1,0],[0,1,1,1],[0,2,1,2],[0,3,0,6],[0,7,0,10]]}
["No","種別","シート名","出力時",null,null,null,"回答時",null,null,null,"ｃｈｋ"]
[null,null,null,"PRSコード","施設名称","施設設置者","住所","PRSコード","施設名称","施設設置者","住所","PRSコード","施設名称","施設設置者","住所","フラグ"]

{"sheet":"表紙","index":6,"n_rows":18,"n_cols":17,"rows_kept":18,"cut":false,"hidden":false,"merged":[[6,1,6,16],[8,1,9,16],[1,1,2,5],[3,1,3,2],[3,3,3,5],[4,1,4,16],[5,1,5,16],[12,1,17,1],[12,2,12,3],[12,4,12,16],[13,2,17,2],[13,4,13,16],[14,7,14,16],[17,4,17,16],[16,4,16,16],[11,1,11,3],[11,4,11,11],[11,12,11,16],[10,1,10,3],[10,4,10,11],[10,12,10,16]]}
[2026]
[null,"環境省　環境再生・資源循環局\n廃棄物適正処理推進課"]
[]
[null,"調査対象\n期間",null,"令和7年4月1日～\n　　　　令和8年3月31日"]
[null,"令和８年度"]
[null,"一般廃棄物処理事業実態調査施設整備状況調査票"]
[null,"〔民間施設用〕"]
[]
[null,"この調査は、民間施設における一般廃棄物処理事業の実態を把握し、国の一般廃棄物処理行政施策の基礎資料とすることを目的とする。"]
[]
[null,"都道府県名",null,null,"設置主体名",null,null,null,null,null,null,null,"コ　ー　ド"]
[]
[null,"担当記入者","氏　　　　名"]
[null,null,"勤務先","所属・職名"]
[null,null,null,"郵便番号","〒","","－",""]
[null,null,null,"電話","（","","）","","－","","ＦＡＸ","（","","）","","－",""]
[null,null,null,"所在地"]
[null,null,null,"E-mail"]

{"sheet":"焼却","index":7,"n_rows":96,"n_cols":27,"rows_kept":96,"cut":false,"hidden":true,"merged":[[67,8,67,9],[67,11,67,13],[68,8,68,9],[68,11,68,13],[53,9,56,9],[53,11,53,12],[47,16,48,18],[51,14,52,19],[51,11,51,12],[52,9,52,10],[52,11,52,12],[53,14,54,19],[84,24,84,28],[54,11,54,12],[55,11,55,12],[56,11,56,12],[73,24,76,28],[81,26,83,27],[74,12,74,16],[71,12,71,16],[76,11,78,11],[75,10,75,13],[13,10,13,11],[29,3,32,3],[31,9,32,9],[45,3,50,3],[45,8,45,10],[49,7,50,7],[34,11,34,12],[37,11,37,12],[39,9,39,10],[39,11,39,12],[22,12,22,13],[22,2,23,3],[23,12,23,13],[26,9,26,10],[27,9,27,10],[4,12,4,15],[5,9,5,15],[6,9,6,15],[10,9,11,9],[7,9,7,15],[6,4,6,6],[95,5,95,6],[95,7,95,8],[70,2,71,4],[76,15,78,15],[76,12,78,12],[76,13,77,14],[76,5,78,8],[76,9,78,9],[76,10,78,10],[79,5,94,5],[83,6,83,8],[59,3,62,3],[54,5,54,6],[56,5,56,6],[51,9,51,10]]}
[]
[null,"焼却施設（溶融施設含む）〔民間施設用〕"]
[]
[null,null,"（１）　施設名称"]
[null,null,null,null,null,null,null,null,"都道府県コード：",{"$f":"IF(表紙!A12=\"\",\"\",表紙!A12)","v":""},null,"都道府県名：",{"$f":"IF(表紙!B12=\"\",\"\",表紙!B12)","v":""}]
[null,null,null,null,null,null,null,null,"施設名称："]
[null,null,"施設設置時の届出・許可：",null,"選択してください",null,null,null,"施設の設置者：\n（法人にあっては法人名）"]
[null,null,null,null,null,null,null,null,"施設所在地："]
[null,null,"（２）　処理実績"]
[null,null,null,null,"年間処理量",null,null,"ｔ／年"]
[null,null,null,null,"資源化量",null,null,"ｔ／年",null,"産業廃棄物の搬入有無","有り","無し"]
[null,null,null,null,null,null,"資源化物\n生産量","資源化物\n搬出量"]
[null,null,null,null,null,null,null,null,null,null,null,"↓（有りの場合）"]
[null,null,null,null,null,null,null,null,null,"一般廃棄物の割合",null,null,"％"]
[]
[null,null,"（３）　施設概要"]
[null,null,null,"官民連携の形態\n（複数選択可）"]
[]
[]
[]
[]
[]
[null,null,"※選択は、上記青枠内から該当するもの全ての欄に「1」を記入",null,null,"①","②","③","④","⑤","⑥","⑦","⑦その他→具体的に"]
[]
[]
[null,null,null,null,null,"※上記にて①を選択した場合、回答不要"]
[null,null,null,"契約等の種別\n（複数選択可）",null,"契約書","協定書","覚書","その他","その他→具体的に"]
[]
[]
[null,null,null,"処理対象廃棄物\n（複数選択可）",null,"可燃ごみ","混合（未分別）ごみ","粗大ごみ","固形化燃料","その他","その他→具体的に"]
[]
[null,null,null,null,null,"不燃ごみ","資源ごみ","ごみ処理残渣","し尿処理残渣"]
[]
[]
[null,null,null,"施設の種類",null,"焼却","ガス化溶融・\n改質","炭化","その他","その他→具体的に","施設全体の\n処理能力",null,null,"ｔ／日"]
[null,null,null,null,null,null,null,null,null,null,null,"※１炉あたりではなく施設全体の処理能力を入力すること"]
[]
[null,null,null,"処理方式",null,"ストーカ式\n（可動）","流動床式","シャフト式",null,null,"炉数",null,null,"炉"]
[]
[null,null,null,null,null,"回転式","固定床式","その他",null,"使用開始年度",null,null,null,"年度（西暦）"]
[]
[]
[null,null,null,"炉型式",null,"全連続運転","准連続運転","バッチ運転",null,null,"面積・高さ","建築面積\n（㎡）","延床面積\n（㎡）","敷地面積\n（㎡）","処理施設の高さ\n（ｍ）","煙突の高さ\n（ｍ）"]
[]
[]
[null,null,null,"余熱利用の状況\n（複数選択可）",null,"場内温水","場内蒸気","発電（場内利用）","　【余熱利用量（発電利用分は含まない）】",null,null,null,"【発電の場合】",{"$f":"IF(AND($H$47<>1,$H$49<>1,OR(N47<>\"\",N48<>\"\",N49<>\"\",N50<>\"\")),\"余熱利用の状況で「発電」を回答していないのに【発電の場合】を回答しています\",\"\")","v":""}]
[null,null,null,null,null,null,null,null,"（余熱利用量",null,"MＪ/年）（仕様値・公称値）",null,"（発電能力",null,"ｋW)"]
[null,null,null,null,null,"場外温水","場外蒸気","発電（場外利用）","（うち外部熱供給量",null,"MＪ/年）（仕様値・公称値）",null,"（発電効率",null,"％）（仕様値・公称値）",null,{"$f":"IF(N49>=100000,\"要確認：総発電量が全国値と比べ高いようですが、単位（MWh）間違い等ないでしょうか\",\"\")","v":""}]
[null,null,null,null,null,null,null,null,"（余熱利用量",null,"MＪ/年）（実績値）",null,"（総発電量",null,"MWｈ/年）（実績値）"]
[null,null,null,null,null,"その他","無し",null,"（うち外部熱供給量",null,"MＪ/年）（実績値）",null,"（うち外部供給量",null,"MWｈ/年）（実績値）"]
[]
[null,null,null,null,null,null,null,null,"余剰電力利用（売電）","売電量",null,null,null,"MWh/年"]
[null,null,null,null,null,null,null,null,null,"売電収入",null,null,null,"円/年"]
[null,null,null,null,null,"　契約電力会社名（受電）",null,null,null,"売電価格\n（単価）","固定価格",null,null,"円/kWh"]
[null,null,null,null,null,null,null,null,null,null,"重負荷",null,null,"円/kWh"]
[null,null,null,null,null,"　契約電力会社名（売電）",null,null,null,null,"昼間",null,null,"円/kWh"]
[null,null,null,null,null,null,null,null,null,null,"夜間",null,null,"円/kWh"]
[]
[]
[null,null,null,"灰処理設備\nの有無",null,"【焼却灰】","セメント固化","薬剤処理","溶融処理","その他","無し"]
[]
[null,null,null,null,null,"【飛　灰】","セメント固化","薬剤処理","溶融処理","その他","無し"]
[]
[]
[null,null,null,"施設の改廃",null,"新設（建設中）","新設（新規稼働）","能力変更","休止","廃止"]
[]
[null,null,null,null,null,null,null,null,{"$f":"IF(F69=1,\"↓移管先の団体名を入力\",IF(G69=1,\"↓移管元の情報を入力\",\"\"))","v":""}]
[null,null,null,null,null,"移管元","移管先",null,"団体名",null,"施設種別","移管元施設名称"]
[]
[]
[null,null,"ごみ組成分析結果\n",null,null,"紙・布類","ﾋﾞﾆｰﾙ、合成樹脂\nｺﾞﾑ、皮革類","木、竹、わら類","ちゅう芥類","不燃物類","その他","合計"]
[null,null,null,null,null,0,0,0,0,0,0,{"$f":"SUM(F72:K72)","v":0},{"$f":"IF(X72<>\"\",X72,\"\")","v":""},null,null,null,null,null,null,null,null,null,{"$f":"SUM(F72:K72)","v":0},{"$f":"IF(W72<>0,IF(W72<>100,\"組成分析結果は合計が100%になるよう入力すること\",\"\"),\"\")","v":""}]
[]
[null,null,null,null,null,"単位容積重量\n（kg/㎥）","水分","可燃分","灰分","三成分の合計\n（水分＋可燃分＋灰分）","低位発熱量\n（計算値）\n(kJ/kg)","低位発熱量\n（実測値）\n(kJ/kg)",null,null,null,null,null,null,null,null,null,null,null,null,"★令和元年度調査より「契約電力会社名（受電・売電）」と「余剰電力利用（売電）」の全８項目が公表データとなります。\n★公表の可否を選択し「否」を選択した場合は理由を必ず入力して下さい。"]
[null,null,null,null,null,0,0,0,0,{"$f":"SUM(G75:I75)","v":0},0,0,{"$f":"IF(X75<>\"\",X75,\"\")","v":""},null,null,null,null,null,null,null,null,null,{"$f":"SUM(G75:I75)","v":0},{"$f":"IF(W75<>0,IF(W75<>100,\"三成分は合計が100%になるよう入力すること\",\"\"),\"\")","v":""}]
[null,null,null,null,null,null,null,null,null,null,{"$f":"IF(AND(OR($K$75=\"\",$K$75=0),OR($L$75=\"\",$L$75=0)),\"低位発熱量が未回答ですが、お間違いないでしょうか\",\"\")","v":"低位発熱量が未回答ですが、お間違いないでしょうか"},null,null,null,{"$f":"K75+L75","v":0}]
[null,null,null,"燃料使用量等",null,null,null,null,null,"使用の有無\n(選択）","データ把握の状況\n(選択）","他施設との重複\n(選択）","軽油へのBDF\n混入率（％）","活動量",null,"温室効果ガス排出量\n(自動計算)"]
[null,null,null,null,null,null,null,null,null,null,null,null,null,null,null,null,null,null,null,null,null,null,null,null,null,"契約電力会社・余剰電力利用（売電）の公表可否"]
[null,null,null,null,null,null,null,null,null,null,null,null,null,"","単位",null,null,null,null,null,null,null,null,null,null,"可","否"]
[null,null,null,null,null,"処理施設での燃料使用量等","灯油",null,null,null,null,null,null,null,"㍑",{"$f":"+calcco2(G80,M80,N80)","v":0}]
[null,null,null,null,null,null,"揮発油",null,null,null,null,null,null,null,"㍑",0,null,null,null,null,null,null,null,null,null,null,"↓「否」を選択した場合の理由"]
[null,null,null,null,null,null,"軽油",null,null,null,null,null,null,null,"㍑",0]
[null,null,null,null,null,null,"Ａ重油",null,null,null,null,null,null,null,"㍑",0]
[null,null,null,null,null,null,"Ｂ重油又はＣ重油",null,null,null,null,null,null,null,"㍑",0]
[null,null,null,null,null,null,"ＬＰＧ",null,null,null,null,null,null,null,"kg",0,null,null,null,null,null,null,null,null,{"$f":"IF(AND(AA80=1,AA82=\"\"),\"非公表の理由を必ず入力して下さい\",\"\")","v":""}]
[null,null,null,null,null,null,"ＬＮＧ",null,null,null,null,null,null,null,"kg",0]
[null,null,null,null,null,null,"都市ガス",null,null,null,null,null,null,null,"㎥",0]
[null,null,null,null,null,null,"石炭コークス",null,null,null,null,null,null,null,"kg",{"$f":"+calcco2(G88,M88,N88)","v":0}]
[null,null,null,null,null,null,"石油コークス",null,null,null,null,null,null,null,"kg",{"$f":"+calcco2(G89,M89,N89)","v":0}]
[null,null,null,null,null,null,"発電電力量",null,null,null,null,null,null,null,"kWh",0]
[null,null,null,null,null,null,"購入電力量",null,null,null,null,null,null,null,"kWh",0]
[null,null,null,null,null,null,"売却電力量",null,null,null,null,null,null,null,"kWh",0]
[null,null,null,null,null,null,"他施設へ供給した電力量",null,null,null,null,null,null,null,"kWh",0]
[null,null,null,null,null,null,"関連する施設から供給された電力量",null,null,null,null,null,null,null,"kWh",0]
[null,null,null,null,null,null,"当該施設で使用した電力量",null,null,null,null,null,null,null,"kWh",0]
[null,null,null,null,null,"廃プラスチック焼却量",null," ※処理量の中に廃プラスチックが含まれているか否か",null,null,null,null,null,null,"ｔ",{"$f":"+calcco2(F96,M96,N96)","v":0}]

{"sheet":"粗大","index":8,"n_rows":44,"n_cols":14,"rows_kept":44,"cut":false,"hidden":true,"merged":[[22,2,23,3],[22,12,22,13],[23,12,23,13],[26,9,26,10],[27,9,27,10],[41,8,41,9],[41,11,41,13],[43,5,43,6],[10,9,11,9],[4,12,4,15],[11,4,13,5],[13,10,13,11],[5,9,5,15],[6,9,6,15],[7,9,7,15],[6,4,6,6],[29,3,32,3],[29,11,29,12],[32,9,32,10],[32,11,32,12],[40,8,40,9],[40,11,40,13],[34,11,34,12],[34,9,34,10]]}
[]
[null,"粗大ごみ処理施設〔民間施設〕"]
[]
[null,null,"（１）　施設名称"]
[null,null,null,null,null,null,null,null,"都道府県コード：",{"$f":"IF(表紙!A12=\"\",\"\",表紙!A12)","v":""},null,"都道府県名：",{"$f":"IF(表紙!B12=\"\",\"\",表紙!B12)","v":""}]
[null,null,null,null,null,null,null,null,"施設名称："]
[null,null,"施設設置時の届出・許可：",null,"選択してください",null,null,null,"施設の設置者：\n（法人にあっては法人名）"]
[null,null,null,null,null,null,null,null,"施設所在地："]
[null,null,"（２）　処理実績"]
[]
[null,null,null,null,"年間処理量",null,null,"ｔ／年",null,"産業廃棄物の搬入有無","有り","無し"]
[null,null,null,null,"資源化物回収量",null,null,"ｔ／年"]
[null,null,null,null,null,null,"回収量","搬出量",null,null,null,"↓（有りの場合）"]
[null,null,null,null,null,null,null,null,null,"一般廃棄物の割合",null,null,"％"]
[]
[null,null,"（３）　施設概要"]
[null,null,null,"官民連携の形態\n（複数選択可）"]
[]
[]
[]
[]
[]
[null,null,"※選択は、上記青枠内から該当するもの全ての欄に「1」を記入",null,null,"①","②","③","④","⑤","⑥","⑦","⑦その他→具体的に"]
[]
[]
[null,null,null,null,null,"※上記にて①を選択した場合、回答不要"]
[null,null,null,"契約等の種別\n（複数選択可）",null,"契約書","協定書","覚書","その他","その他→具体的に"]
[]
[]
[null,null,null,"処理対象廃棄物\n（複数選択可）",null,"粗大ごみ","不燃ごみ","その他","その他→具体的に",null,"処理能力",null,null,"ｔ／日"]
[]
[null,null,null,null,null,"混合（未分別）ごみ","可燃ごみ","資源ごみ"]
[null,null,null,null,null,null,null,null,null,"使用開始年度",null,null,null,"年度（西暦）"]
[]
[null,null,null,"処理方式",null,"破砕","圧縮","併用",null,"計画稼働日数",null,null,null,"日／年"]
[]
[]
[null,null,null,"施設の改廃",null,"新設（建設中）","新設（新規稼働）","能力変更","休止","廃止"]
[]
[null,null,null,null,null,null,null,null,{"$f":"IF(F42=1,\"↓移管先の団体名を入力\",IF(G42=1,\"↓移管元の情報を入力\",\"\"))","v":""}]
[null,null,null,null,null,"移管元","移管先",null,"団体名",null,"施設種別","移管元施設名称"]
[]
[]
[null,null,null,"契約電力会社名"]

{"sheet":"資源化","index":9,"n_rows":46,"n_cols":14,"rows_kept":46,"cut":false,"hidden":true,"merged":[[22,2,23,3],[22,12,22,13],[23,12,23,13],[26,9,26,10],[27,9,27,10],[43,8,43,9],[43,11,43,13],[45,5,45,6],[13,10,13,11],[4,12,4,15],[10,4,11,5],[10,9,11,9],[5,9,5,15],[6,9,6,15],[7,9,7,15],[42,8,42,9],[42,11,42,13],[6,4,6,6],[29,3,32,3],[34,11,34,12],[36,9,36,10],[36,11,36,12],[34,3,37,4],[37,11,37,12]]}
[]
[null,"資源化等を行う施設〔民間施設〕"]
[]
[null,null,"（１）　施設名称"]
[null,null,null,null,null,null,null,null,"都道府県コード：",{"$f":"IF(表紙!A12=\"\",\"\",表紙!A12)","v":""},null,"都道府県名：",{"$f":"IF(表紙!B12=\"\",\"\",表紙!B12)","v":""}]
[null,null,null,null,null,null,null,null,"施設名称："]
[null,null,"施設設置時の届出・許可：",null,"選択してください",null,null,null,"施設の設置者：\n（法人にあっては法人名）"]
[null,null,null,null,null,null,null,null,"施設所在地："]
[null,null,"（２）　処理実績"]
[null,null,null,null,"年間処理量",null,null,"ｔ／年"]
[null,null,null,null,"資源化物回収量",null,null,"ｔ／年",null,"産業廃棄物の搬入有無","有り","無し"]
[null,null,null,null,null,null,null,"㎥／年"]
[null,null,null,null,null,null,"搬出量","在庫量",null,null,null,"↓（有りの場合）"]
[null,null,null,null,null,null,null,null,null,"一般廃棄物の割合",null,null,"％"]
[]
[null,null,"（３）　施設概要"]
[null,null,null,"官民連携の形態\n（複数選択可）"]
[]
[]
[]
[]
[]
[null,null,"※選択は、上記青枠内から該当するもの全ての欄に「1」を記入",null,null,"①","②","③","④","⑤","⑥","⑦","⑦その他→具体的に"]
[]
[]
[null,null,null,null,null,"※上記にて①を選択した場合、回答不要"]
[null,null,null,"契約等の種別\n（複数選択可）",null,"契約書","協定書","覚書","その他","その他→具体的に"]
[]
[]
[null,null,null,"処理対象廃棄物\n（複数選択可）",null,"紙類","金属類","ガラス類","その他資源ごみ","ペットボトル","プラスチック","布類","剪定枝"]
[]
[null,null,null,null,null,"可燃ごみ","不燃ごみ","粗大ごみ","し尿","家庭系生ごみ","事業系生ごみ","汚泥","その他","その他→具体的に"]
[]
[]
[null,null,null,"処理内容ごとの処理能力\n\n該当する処理内容の欄に処理内容ごとの処理能力を入力",null,"選別","圧縮・梱包","ごみ堆肥化",null,null,"施設全体の処理能力",null,null,"t/日"]
[null,null,null,null,null,0,0,0]
[null,null,null,null,null,"ごみ飼料化","その他","その他→具体的に",null,"使用開始年度",null,null,null,"年度（西暦）"]
[null,null,null,null,null,0,0,null,null,null,"計画稼働日数",null,null,"日／年"]
[]
[null,null,null,"施設の改廃",null,"新設（建設中）","新設（新規稼働）","能力変更","休止","廃止"]
[]
[null,null,null,null,null,null,null,null,{"$f":"IF(F44=1,\"↓移管先の団体名を入力\",IF(G44=1,\"↓移管元の情報を入力\",\"\"))","v":""}]
[null,null,null,null,null,"移管元","移管先",null,"団体名",null,"施設種別","移管元施設名称"]
[]
[]
[null,null,null,"契約電力会社名"]

{"sheet":"燃料化","index":10,"n_rows":64,"n_cols":19,"rows_kept":64,"cut":false,"hidden":true,"merged":[[23,2,24,3],[23,12,23,13],[24,12,24,13],[27,9,27,10],[28,9,28,10],[58,5,58,6],[58,7,58,8],[59,5,59,6],[59,7,59,8],[60,5,63,5],[60,7,60,8],[61,7,61,8],[62,7,62,8],[63,7,63,8],[4,12,4,15],[37,9,38,10],[9,4,10,5],[9,9,10,9],[11,4,12,5],[12,10,12,11],[13,4,14,5],[5,9,5,15],[6,9,6,15],[7,9,7,15],[6,4,6,6],[42,11,42,12],[30,3,33,3],[35,3,38,3],[56,5,56,6],[54,5,54,6],[40,3,41,3],[40,11,40,12],[41,11,41,12],[46,8,46,9],[46,11,46,13],[47,8,47,9],[47,11,47,13]]}
[]
[null,"ごみ燃料化施設〔民間施設用〕"]
[]
[null,null,"（１）　施設名称"]
[null,null,null,null,null,null,null,null,"都道府県コード：",{"$f":"IF(表紙!A12=\"\",\"\",表紙!A12)","v":""},null,"都道府県名：",{"$f":"IF(表紙!B12=\"\",\"\",表紙!B12)","v":""}]
[null,null,null,null,null,null,null,null,"施設名称："]
[null,null,"施設設置時の届出・許可：",null,"選択してください",null,null,null,"施設の設置者：\n（法人にあっては法人名）"]
[null,null,null,null,null,null,null,null,"施設所在地："]
[null,null,"（２）　処理実績"]
[null,null,null,null,"年間処理量",null,null,"ｔ／年",null,"産業廃棄物の搬入有無","有り","無し"]
[null,null,null,null,null,null,null,"㎥／年"]
[null,null,null,null,"燃料化量",null,null,"ｔ／年",null,null,null,"↓（有りの場合）"]
[null,null,null,null,null,null,null,"㎥／年",null,"一般廃棄物の割合",null,null,"％"]
[null,null,null,null,null,null,"生産量","排出量"]
[]
[]
[null,null,"（３）　施設概要"]
[null,null,null,"官民連携の形態\n（複数選択可）"]
[]
[]
[]
[]
[]
[null,null,"※選択は、上記青枠内から該当するもの全ての欄に「1」を記入",null,null,"①","②","③","④","⑤","⑥","⑦","⑦その他→具体的に"]
[]
[]
[null,null,null,null,null,"※上記にて①を選択した場合、回答不要"]
[null,null,null,"契約等の種別\n（複数選択可）",null,"契約書","協定書","覚書","その他","その他→具体的に"]
[]
[]
[null,null,null,"処理対象廃棄物\n（複数選択可）",null,"混合（未分別）ごみ","紙類","ペットボトル","プラスチック","布類","ごみ処理残渣","剪定枝"]
[]
[null,null,null,null,null,"可燃ごみ","不燃ごみ","粗大ごみ","し尿","家庭系生ごみ","事業系生ごみ","その他","その他→具体的に"]
[]
[]
[null,null,null,"施設の種類",null,"固形燃料化（RDF）","BDF化","メタン化（乾式）","メタン化（湿式）","油化（エタノール燃料化）","固形燃料化（RPF)"]
[]
[null,null,null,null,null,"木材チップ化","その他"]
[]
[]
[null,null,null,"生成物供給先の確保状況\n（複数選択可）",null,"発電用","燃料用","その他",null,null,"処理能力",null,null,"t/日"]
[null,null,null,null,null,null,null,null,null,null,"使用開始年度",null,null,"年度（西暦）"]
[null,null,null,null,null,null,null,null,null,null,"計画稼働日数",null,null,"日／年"]
[null,null,null,"施設の改廃",null,"新設（建設中）","新設（新規稼働）","能力変更","休止","廃止"]
[]
[null,null,null,null,null,null,null,null,{"$f":"IF(F48=1,\"↓移管先の団体名を入力\",IF(G48=1,\"↓移管元の情報を入力\",\"\"))","v":""}]
[null,null,null,null,null,"移管元","移管先",null,"団体名",null,"施設種別","移管元施設名称"]
[]
[]
[null,null,null,"発電の場合",null,"（発電能力",null,"ｋW)",null,null,null,null,null,null,null,null,null,"←★修正済み"]
[null,null,null,null,null,"（発電効率",null,"％）",null,null,null,null,null,null,null,null,null,"←★修正済み"]
[null,null,null,null,null,"（総発電量",null,"MWｈ/年）（実績値）",null,null,null,null,null,null,null,null,null,"←★修正済み"]
[null,null,null,null,null,"（うち外部供給量",null,"MWｈ/年）（実績値）",null,null,null,null,null,null,null,null,null,"←★修正済み"]
[null,null,null,null,null,null,null,null,null,null,null,null,null,null,null,null,null,"←★修正済み"]
[null,null,null,"契約電力会社名（受電）",null,null,null,null,null,null,null,null,null,null,null,null,null,"←★修正済み","←★修正済み"]
[null,null,null,null,null,null,null,null,null,null,null,null,null,null,null,null,null,"←★修正済み"]
[null,null,null,"契約電力会社名（売電）",null,null,null,null,null,null,null,null,null,null,null,null,null,"←★修正済み","←★修正済み"]
[null,null,null,null,null,null,null,null,null,null,null,null,null,null,null,null,null,"←★修正済み"]
[null,null,null,"余剰電力利用（売電）",null,"売電量",null,null,null,"MWh/年",null,null,null,null,null,null,null,"←★修正済み"]
[null,null,null,null,null,"売電収入",null,null,null,"円/年",null,null,null,null,null,null,null,"←★修正済み"]
[null,null,null,null,null,"売電価格\n（単価）","固定価格",null,null,"円/kWh",null,null,null,null,null,null,null,"←★修正済み"]
[null,null,null,null,null,null,"重負荷",null,null,"円/kWh",null,null,null,null,null,null,null,"←★修正済み"]
[null,null,null,null,null,null,"昼間",null,null,"円/kWh",null,null,null,null,null,null,null,"←★修正済み"]
[null,null,null,null,null,null,"夜間",null,null,"円/kWh"]

{"sheet":"その他","index":11,"n_rows":41,"n_cols":14,"rows_kept":41,"cut":false,"hidden":true,"merged":[[21,2,22,3],[21,12,21,13],[22,12,22,13],[25,9,25,10],[26,9,26,10],[38,8,38,9],[38,11,38,13],[40,5,40,6],[9,9,10,9],[12,10,12,11],[6,4,6,6],[4,12,4,15],[6,9,6,15],[5,9,5,15],[7,9,7,15],[28,3,29,3],[31,3,32,3],[31,11,31,12],[32,11,32,12],[37,8,37,9],[37,11,37,13],[33,11,33,12]]}
[]
[null,"その他の施設（ごみの中間処理施設）〔民間施設用〕"]
[]
[null,null,"（１）　施設名称"]
[null,null,null,null,null,null,null,null,"都道府県コード：",{"$f":"IF(表紙!A12=\"\",\"\",表紙!A12)","v":""},null,"都道府県名：",{"$f":"IF(表紙!B12=\"\",\"\",表紙!B12)","v":""}]
[null,null,null,null,null,null,null,null,"施設名称："]
[null,null,"施設設置時の届出・許可：",null,"選択してください",null,null,null,"施設の設置者：\n（法人にあっては法人名）"]
[null,null,null,null,null,null,null,null,"施設所在地："]
[null,null,"（２）　処理実績"]
[null,null,null,null,"年間処理量",null,null,"ｔ／年",null,"産業廃棄物の搬入有無","有り","無し"]
[]
[null,null,null,null,null,null,null,null,null,null,null,"↓（有りの場合）"]
[null,null,null,null,null,null,null,null,null,"一般廃棄物の割合",null,null,"％"]
[]
[null,null,"（３）　施設概要"]
[null,null,null,"官民連携の形態\n（複数選択可）"]
[]
[]
[]
[]
[]
[null,null,"※選択は、上記青枠内から該当するもの全ての欄に「1」を記入",null,null,"①","②","③","④","⑤","⑥","⑦","⑦その他→具体的に"]
[]
[]
[null,null,null,null,null,"※上記にて①を選択した場合、回答不要"]
[null,null,null,"契約等の種別\n（複数選択可）",null,"契約書","協定書","覚書","その他","その他→具体的に"]
[]
[]
[null,null,null,"処理対象廃棄物\n（複数選択可）",null,"混合（未分別）ごみ","可燃ごみ","資源ごみ","粗大ごみ","不燃ごみ","その他","その他→具体的に"]
[]
[]
[null,null,null,"処理内容\n（複数選択可）",null,"破砕","圧縮・梱包","その他","その他→具体的に",null,"処理能力",null,null,"t/日"]
[null,null,null,null,null,null,null,null,null,null,"使用開始年度",null,null,"年度（西暦）"]
[null,null,null,null,null,null,null,null,null,null,"計画稼働日数",null,null,"日／年"]
[null,null,null,"施設の改廃",null,"新設（建設中）","新設（新規稼働）","能力変更","休止","廃止"]
[]
[null,null,null,null,null,null,null,null,{"$f":"IF(F39=1,\"↓移管先の団体名を入力\",IF(G39=1,\"↓移管元の情報を入力\",\"\"))","v":""}]
[null,null,null,null,null,"移管元","移管先",null,"団体名",null,"施設種別","移管元施設名称"]
[]
[]
[null,null,null,"契約電力会社名"]

{"sheet":"最終処分","index":12,"n_rows":79,"n_cols":14,"rows_kept":79,"cut":false,"hidden":true,"merged":[[22,2,23,3],[22,12,22,13],[23,12,23,13],[75,8,75,9],[75,11,75,13],[29,3,32,3],[55,3,58,3],[66,5,67,5],[67,9,67,10],[37,3,40,3],[26,9,26,10],[27,9,27,10],[76,8,76,9],[76,11,76,13],[78,5,78,6],[4,12,4,15],[9,4,10,5],[9,6,10,6],[9,7,10,7],[10,9,11,9],[11,6,12,6],[5,9,5,15],[6,9,6,15],[11,4,12,5],[7,9,7,15],[6,4,6,6],[39,11,39,12],[11,7,12,7],[13,4,13,5],[13,10,13,11],[37,11,37,12],[38,11,38,12],[39,8,40,8],[31,9,32,10],[36,11,36,12]]}
[]
[null,"最終処分場〔民間施設用〕"]
[]
[null,null,"（１）　施設名称"]
[null,null,null,null,null,null,null,null,"都道府県コード：",{"$f":"IF(表紙!A12=\"\",\"\",表紙!A12)","v":""},null,"都道府県名：",{"$f":"IF(表紙!B12=\"\",\"\",表紙!B12)","v":""}]
[null,null,null,null,null,null,null,null,"施設名称："]
[null,null,"施設設置時の届出・許可：",null,"選択してください",null,null,null,"施設の設置者：\n（法人にあっては法人名）"]
[null,null,null,null,null,null,null,null,"施設所在地："]
[null,null,"（２）　処理実績"]
[null,null,null,null,"調査対象年度の埋立量（容積）\n（覆土を含む）",null,null,"㎥／年"]
[null,null,null,null,null,null,null,null,null,"産業廃棄物の搬入有無","有り","無し"]
[null,null,null,null,"調査対象年度の埋立量（重量）\n（覆土を含まない）",null,null,"t／年"]
[null,null,null,null,null,null,null,null,null,null,null,"↓（有りの場合）"]
[null,null,null,null,"残余容量",null,null,"㎥",null,"一般廃棄物の割合",null,null,"％"]
[]
[null,null,"（３）　施設概要"]
[null,null,null,"官民連携の形態\n（複数選択可）"]
[]
[]
[]
[]
[]
[null,null,"※選択は、上記青枠内から該当するもの全ての欄に「1」を記入",null,null,"①","②","③","④","⑤","⑥","⑦","⑦その他→具体的に"]
[]
[]
[null,null,null,null,null,"※上記にて①を選択した場合、回答不要"]
[null,null,null,"契約等の種別\n（複数選択可）",null,"契約書","協定書","覚書","その他","その他→具体的に"]
[]
[]
[null,null,null,"処理対象廃棄物\n（複数選択可）",null,"焼却残渣（主灰）","溶融飛灰","可燃ごみ","資源ごみ","不燃ごみ","その他"]
[]
[null,null,null,null,null,"焼却残渣（飛灰）","溶融スラグ","破砕ごみ・処理残渣","粗大ごみ"]
[]
[]
[null,null,null,"埋立場所",null,"山間","平地","水面（海面を除く）","海面"]
[]
[null,null,null,null,null,null,null,null,null,null,"埋立開始年度",null,null,"年度（西暦）"]
[null,null,null,"遮水の方式\n（複数選択可）",null,"原地盤利用","底部遮水工","鉛直遮水工","覆蓋（屋根）",null,"埋立地面積",null,null,"㎡"]
[null,null,null,null,null,null,null,null,null,null,"施設全体容量",null,null,"㎥"]
[null,null,null,null,null,"表面遮水工（キャッピング）","その他遮水","遮水なし",null,null,"埋立終了年度",null,null,"年度（西暦）"]
[]
[]
[null,null,null,"最終処分場の構造",null,"嫌気性埋立構造","準好気性埋立構造","その他埋立構造",null,null,"最終処分場の形式","従来型\n（オープン型）","覆蓋型（クローズドシステム型）"]
[]
[null,null,null,null,null,null,"↓（準好気性埋立構造を回答した場合のみ）"]
[null,null,null,null,"最終処分場の管理状況（上記で準好気性埋立構造を回答した場合のみ）"]
[null,null,null,null,"保有水等集排水管の水位管理",null,null,"末端集水管は開放","末端集水管は水没"]
[]
[]
[null,null,null,null,"覆土施工の状況",null,null,"即日覆土","中間覆土","最終覆土のみ"]
[]
[]
[null,null,null,null,"ガス抜き管の計画的施工状況",null,null,"埋立状況により計画的に延長","一部延長を行っている","一部延長を行っていない"]
[]
[]
[null,null,null,"浸出液の処理\n（複数選択可）",null,"凝集沈殿","生物処理（脱窒なし）","生物処理（脱窒あり）","砂ろ過","消毒","他施設での処理"]
[]
[null,null,null,null,null,"活性炭処理","膜処理","キレート処理","促進酸化処理","下水道放流","処理なし"]
[]
[]
[null,null,null,"メタンガス回収有無",null,"回収している","回収していない"]
[]
[null,null,null,null,null," ↓(回収している場合)"]
[null,null,null,null,null,"メタンガス\n回収量",null,"㎥/年"]
[null,null,null,null,null,"メタンガス濃度",null,"％"]
[null,null,null,null,null,"メタンガス\n発熱量",null,"kJ/N㎥"]
[null,null,null,null,null,"メタンガスの利用\n(複数選択可)","発電","熱利用","利用していない"]
[null,null,null,null,null,null,null,null,null,"発電の場合：発電量",null,null,"kWh／年"]
[]
[null,null,null,"処分場の現状",null,"埋立前","埋立中","埋立終了"]
[]
[]
[null,null,null,"施設の改廃",null,"新設（建設中）","新設（新規稼働）","能力変更","休止","廃止"]
[]
[null,null,null,null,null,null,null,null,{"$f":"IF(F77=1,\"↓移管先の団体名を入力\",IF(G77=1,\"↓移管元の情報を入力\",\"\"))","v":""}]
[null,null,null,null,null,"移管元","移管先",null,"団体名",null,"施設種別","移管元施設名称"]
[]
[]
[null,null,null,"契約電力会社名"]

{"sheet":"し尿","index":13,"n_rows":70,"n_cols":15,"rows_kept":70,"cut":false,"hidden":true,"merged":[[66,8,66,9],[66,11,66,13],[67,8,67,9],[67,11,67,13],[69,5,69,6],[4,12,4,15],[21,4,21,5],[22,4,23,5],[24,4,24,5],[12,9,13,9],[13,4,18,4],[5,9,5,15],[14,11,17,11],[13,10,17,10],[6,4,6,6],[55,6,58,6],[54,5,58,5],[48,11,48,12],[50,11,50,12],[47,11,47,12],[51,11,51,12],[40,3,43,3],[19,4,20,5],[45,3,46,3],[6,9,6,15],[42,12,43,12],[7,9,7,15],[9,4,12,4],[45,11,45,12],[46,11,46,12],[33,2,34,3],[33,12,33,13],[34,12,34,13],[37,9,37,10],[38,9,38,10]]}
[]
[null,"し尿処理施設・汚泥再生処理センター〔民間施設用〕"]
[]
[null,null,"（１）　施設名称"]
[null,null,null,null,null,null,null,null,"都道府県コード：",{"$f":"IF(表紙!A12=\"\",\"\",表紙!A12)","v":""},null,"都道府県名：",{"$f":"IF(表紙!B12=\"\",\"\",表紙!B12)","v":""}]
[null,null,null,null,null,null,null,null,"施設名称："]
[null,null,"施設設置時の届出・許可：",null,"選択してください",null,null,null,"施設の設置者：\n（法人にあっては法人名）"]
[null,null,null,null,null,null,null,null,"施設所在地："]
[null,null,"（２）　処理実績"]
[null,null,null,null,"年間処理量","し尿",null,"kl／年"]
[null,null,null,null,null,"浄化槽汚泥",null,"kl／年"]
[null,null,null,null,null,"有機性廃棄物",null,"t／年"]
[null,null,null,null,null,"その他",null,"kl／年"]
[null,null,null,null,"資源化方法及び資源化物量","メタン発酵","堆肥化","リン回収",null,null,"メタン発酵の場合","発熱量",null,"kJ/㎥N"]
[null,null,null,null,null,0,0,0,null,null,null,"利用方法\n（複数選択可）","所内利用（発電利用）","所内利用（熱利用）","所内利用（その他）"]
[null,null,null,null,null,"助燃剤製造","炭化","その他","その他→具体的に"]
[null,null,null,null,null,0,0,0,null,null,null,null,"外部搬出利用（発電利用）","外部搬出利用（熱利用）","外部搬出利用（その他）"]
[null,null,null,null,null,null,"資源化物の生産量","資源化物の排出量・売却量"]
[]
[null,null,null,null,"脱水汚泥の直接埋立の有無",null,"直接埋立有り","直接埋立無し"]
[]
[null,null,null,null,"脱水汚泥の直接埋立量（直接埋立有りの場合）",null,null,"t/年"]
[null,null,null,null,"脱水汚泥の焼却の有無",null,"施設内焼却","施設外焼却","焼却無し"]
[]
[null,null,null,null,"脱水汚泥の焼却量（焼却有りの場合）",null,null,"t/年"]
[]
[null,null,"（３）　施設概要"]
[null,null,null,"官民連携の形態\n（複数選択可）"]
[]
[]
[]
[]
[]
[null,null,"※選択は、上記青枠内から該当するもの全ての欄に「1」を記入",null,null,"①","②","③","④","⑤","⑥","⑦","⑦その他→具体的に"]
[]
[]
[null,null,null,null,null,"※上記にて①を選択した場合、回答不要"]
[null,null,null,"契約等の種別\n（複数選択可）",null,"契約書","協定書","覚書","その他","その他→具体的に"]
[]
[]
[null,null,null,"処理方法\n（汚水処理）\n（複数選択可）",null,"嫌気","好気","好希釈","好一段","好二段","標脱","湿式酸化","高負荷"]
[]
[null,null,null,null,null,"膜分離","焼却","下水投入","浄化槽専用","一次処理","その他","その他→具体的に"]
[]
[]
[null,null,null,"（汚泥処理）\n（複数選択可）",null,"脱水","乾燥","焼却","その他","その他→具体的に","処理能力",null,null,"kL/日"]
[null,null,null,null,null,null,null,null,null,null,null,null,null,"t/日-有機性廃棄物"]
[null,null,null,null,null,null,null,null,null,null,"資源化能力",null,null,"t/日"]
[null,null,null,null,null,null,null,null,null,null,"計画メタンガス（バイオガス）量",null,null,"㎥／日"]
[]
[null,null,null,null,null,null,null,null,null,null,"使用開始年度",null,null,"年度（西暦）"]
[null,null,null,null,null,null,null,null,null,null,"計画稼働日数",null,null,"日／年"]
[]
[]
[]
[]
[]
[]
[]
[]
[null,null,null,"運転管理体制",null,"直営","委託","一部委託"]
[]
[]
[null,null,null,"施設の改廃",null,"新設（建設中）","新設（新規稼働）","能力変更","休止","廃止"]
[]
[null,null,null,null,null,null,null,null,{"$f":"IF(F68=1,\"↓移管先の団体名を入力\",IF(G68=1,\"↓移管元の情報を入力\",\"\"))","v":""}]
[null,null,null,null,null,"移管元","移管先",null,"団体名",null,"施設種別","移管元施設名称"]
[]
[]
[null,null,null,"契約電力会社名"]